Workbook

Sheet Inputs
B2: Time Line
C3: Total Life | E3: Years | F3: 30
C4: Construction | E4: Years | F4: 1
C5: Debt Periods/year | E5: Period | F5: 2
B7: Operating
C8: Output | E8: MWH | F8: 1000
C9: Seasonality | E9: First, Second | F9: 1.2 | G9: 0.8
C11: Yield | E11: kWh/kWp | F11: 2500
C12: Implied kWp | E12: kWp | F12: =F8/F11*1000 -> 400
B15: Prices, Costs and Cap Exp
C16: PPA Price | E16: Sols/MWH | F16: 80
C18: Cap Exp | E18: USD/kWp | F18: 700
C19: Cap Exp | E19: Sols/MWH | F19: =F18*4 -> 2800
C21: Op Exp | E21: USD/kWy | F21: 15
C22: Op Exp | E22: Sols/kWy | F22: =F21*4 -> 60
C24: Total Cap Exp | E24: Sols | F24: =F19*F12 -> 1120000
C25: Total Op Exp | E25: Sols | F25: =F22*F12 -> 24000
B27: Macro Economic
C28: Sol Inflation Code | F28: 1
G30: 2022 | H30: 2023 | I30: 2024 | J30: 2025 | K30: 2026 | L30: 2027 | M30: 2028 | N30: 2029 | O30: 2030 | P30: 2031 | Q30: 2032 | R30: 2033 | S30: 2034 | T30: 2035 | U30: 2036 | V30: 2037 | W30: 2038 | X30: 2039 | Y30: 2040 | Z30: 2041 | AA30: 2042 | AB30: 2043 | AC30: 2044 | AD30: 2045 | AE30: 2046 | AF30: 2047 | AG30: 2048 | AH30: 2049 | AI30: 2050 | AJ30: 2051 | AK30: 2052 | AL30: 2053 | AM30: 2054 | AN30: 2055 | AO30: 2056 | AP30: 2057 | AQ30: 2058 | AR30: 2059 | AS30: 2060 | AT30: 2061 | AU30: 2062 | AV30: 2063 | AW30: 2064 | AX30: 2065 | AY30: 2066 | AZ30: 2067 | BA30: 2068 | BB30: 2069 | BC30: 2070
C31: Sol Inflation - Base | F31: 1 | H31: 0.09 | I31: 0.09 | J31: 0.09 | K31: 0.09 | L31: 0.09 | M31: 0.09 | N31: 0.09 | O31: 0.09 | P31: 0.09 | Q31: 0.09 | R31: 0.09 | S31: 0.09 | T31: 0.09 | U31: 0.09 | V31: 0.09 | W31: 0.09 | X31: 0.09 | Y31: 0.09 | Z31: 0.09 | AA31: 0.09 | AB31: 0.09 | AC31: 0.09 | AD31: 0.09 | AE31: 0.09 | AF31: 0.09 | AG31: 0.09 | AH31: 0.09 | AI31: 0.09 | AJ31: 0.09 | AK31: 0.09 | AL31: 0.09 | AM31: 0.09 | AN31: 0.09 | AO31: 0.09 | AP31: 0.09 | AQ31: 0.09 | AR31: 0.09 | AS31: 0.09 | AT31: 0.09 | AU31: 0.09 | AV31: 0.09 | AW31: 0.09 | AX31: 0.09 | AY31: 0.09 | AZ31: 0.09 | BA31: 0.09 | BB31: 0.09 | BC31: 0.09
C32: Sol Inflation - Changing | F32: 2 | H32: 0.09 | I32: 0.09 | J32: 0.09 | K32: 0.08 | L32: 0.08 | M32: 0.08 | N32: 0.06 | O32: 0.06 | P32: 0.06 | Q32: 0.06 | R32: 0.06 | S32: 0.06 | T32: 0.06 | U32: 0.06 | V32: 0.06 | W32: 0.06 | X32: 0.06 | Y32: 0.06 | Z32: 0.06 | AA32: 0.06 | AB32: 0.06 | AC32: 0.06 | AD32: 0.06 | AE32: 0.06 | AF32: 0.06 | AG32: 0.06 | AH32: 0.06 | AI32: 0.06 | AJ32: 0.06 | AK32: 0.06 | AL32: 0.06 | AM32: 0.06 | AN32: 0.06 | AO32: 0.06 | AP32: 0.06 | AQ32: 0.06 | AR32: 0.06 | AS32: 0.06 | AT32: 0.06 | AU32: 0.06 | AV32: 0.06 | AW32: 0.06 | AX32: 0.06 | AY32: 0.06 | AZ32: 0.06 | BA32: 0.06 | BB32: 0.06 | BC32: 0.06
C33: Sol Inflation - High | F33: 3 | H33: 0.11 | I33: 0.11 | J33: 0.11 | K33: 0.11 | L33: 0.11 | M33: 0.11 | N33: 0.11 | O33: 0.11 | P33: 0.11 | Q33: 0.11 | R33: 0.11 | S33: 0.11 | T33: 0.11 | U33: 0.11 | V33: 0.11 | W33: 0.11 | X33: 0.11 | Y33: 0.11 | Z33: 0.11 | AA33: 0.11 | AB33: 0.11 | AC33: 0.11 | AD33: 0.11 | AE33: 0.11 | AF33: 0.11 | AG33: 0.11 | AH33: 0.11 | AI33: 0.11 | AJ33: 0.11 | AK33: 0.11 | AL33: 0.11 | AM33: 0.11 | AN33: 0.11 | AO33: 0.11 | AP33: 0.11 | AQ33: 0.11 | AR33: 0.11 | AS33: 0.11 | AT33: 0.11 | AU33: 0.11 | AV33: 0.11 | AW33: 0.11 | AX33: 0.11 | AY33: 0.11 | AZ33: 0.11 | BA33: 0.11 | BB33: 0.11 | BC33: 0.11
C34: Sol Inflation - Low | F34: 4 | H34: 0.06 | I34: 0.06 | J34: 0.06 | K34: 0.06 | L34: 0.06 | M34: 0.06 | N34: 0.06 | O34: 0.06 | P34: 0.06 | Q34: 0.06 | R34: 0.06 | S34: 0.06 | T34: 0.06 | U34: 0.06 | V34: 0.06 | W34: 0.06 | X34: 0.06 | Y34: 0.06 | Z34: 0.06 | AA34: 0.06 | AB34: 0.06 | AC34: 0.06 | AD34: 0.06 | AE34: 0.06 | AF34: 0.06 | AG34: 0.06 | AH34: 0.06 | AI34: 0.06 | AJ34: 0.06 | AK34: 0.06 | AL34: 0.06 | AM34: 0.06 | AN34: 0.06 | AO34: 0.06 | AP34: 0.06 | AQ34: 0.06 | AR34: 0.06 | AS34: 0.06 | AT34: 0.06 | AU34: 0.06 | AV34: 0.06 | AW34: 0.06 | AX34: 0.06 | AY34: 0.06 | AZ34: 0.06 | BA34: 0.06 | BB34: 0.06 | BC34: 0.06
C36: =INDEX(C31:C34,$F$28) -> Sol Inflation - Base | H36: =INDEX(H31:H34,$F$28) -> 0.09 | I36: =INDEX(I31:I34,$F$28) -> 0.09 | J36: =INDEX(J31:J34,$F$28) -> 0.09 | K36: =INDEX(K31:K34,$F$28) -> 0.09 | L36: =INDEX(L31:L34,$F$28) -> 0.09 | M36: =INDEX(M31:M34,$F$28) -> 0.09 | N36: =INDEX(N31:N34,$F$28) -> 0.09 | O36: =INDEX(O31:O34,$F$28) -> 0.09 | P36: =INDEX(P31:P34,$F$28) -> 0.09 | Q36: =INDEX(Q31:Q34,$F$28) -> 0.09 | R36: =INDEX(R31:R34,$F$28) -> 0.09 | S36: =INDEX(S31:S34,$F$28) -> 0.09 | T36: =INDEX(T31:T34,$F$28) -> 0.09 | U36: =INDEX(U31:U34,$F$28) -> 0.09 | V36: =INDEX(V31:V34,$F$28) -> 0.09 | W36: =INDEX(W31:W34,$F$28) -> 0.09 | X36: =INDEX(X31:X34,$F$28) -> 0.09 | Y36: =INDEX(Y31:Y34,$F$28) -> 0.09 | Z36: =INDEX(Z31:Z34,$F$28) -> 0.09 | AA36: =INDEX(AA31:AA34,$F$28) -> 0.09 | AB36: =INDEX(AB31:AB34,$F$28) -> 0.09 | AC36: =INDEX(AC31:AC34,$F$28) -> 0.09 | AD36: =INDEX(AD31:AD34,$F$28) -> 0.09 | AE36: =INDEX(AE31:AE34,$F$28) -> 0.09 | AF36: =INDEX(AF31:AF34,$F$28) -> 0.09 | AG36: =INDEX(AG31:AG34,$F$28) -> 0.09 | AH36: =INDEX(AH31:AH34,$F$28) -> 0.09 | AI36: =INDEX(AI31:AI34,$F$28) -> 0.09 | AJ36: =INDEX(AJ31:AJ34,$F$28) -> 0.09 | AK36: =INDEX(AK31:AK34,$F$28) -> 0.09 | AL36: =INDEX(AL31:AL34,$F$28) -> 0.09 | AM36: =INDEX(AM31:AM34,$F$28) -> 0.09 | AN36: =INDEX(AN31:AN34,$F$28) -> 0.09 | AO36: =INDEX(AO31:AO34,$F$28) -> 0.09 | AP36: =INDEX(AP31:AP34,$F$28) -> 0.09 | AQ36: =INDEX(AQ31:AQ34,$F$28) -> 0.09 | AR36: =INDEX(AR31:AR34,$F$28) -> 0.09 | AS36: =INDEX(AS31:AS34,$F$28) -> 0.09 | AT36: =INDEX(AT31:AT34,$F$28) -> 0.09 | AU36: =INDEX(AU31:AU34,$F$28) -> 0.09 | AV36: =INDEX(AV31:AV34,$F$28) -> 0.09 | AW36: =INDEX(AW31:AW34,$F$28) -> 0.09 | AX36: =INDEX(AX31:AX34,$F$28) -> 0.09 | AY36: =INDEX(AY31:AY34,$F$28) -> 0.09 | AZ36: =INDEX(AZ31:AZ34,$F$28) -> 0.09 | BA36: =INDEX(BA31:BA34,$F$28) -> 0.09 | BB36: =INDEX(BB31:BB34,$F$28) -> 0.09 | BC36: =INDEX(BC31:BC34,$F$28) -> 0.09
G39: 2022 | H39: 2023 | I39: 2024 | J39: 2025 | K39: 2026 | L39: 2027 | M39: 2028 | N39: 2029 | O39: 2030 | P39: 2031 | Q39: 2032 | R39: 2033 | S39: 2034 | T39: 2035 | U39: 2036 | V39: 2037 | W39: 2038 | X39: 2039 | Y39: 2040 | Z39: 2041 | AA39: 2042 | AB39: 2043 | AC39: 2044 | AD39: 2045 | AE39: 2046 | AF39: 2047 | AG39: 2048 | AH39: 2049 | AI39: 2050 | AJ39: 2051 | AK39: 2052 | AL39: 2053 | AM39: 2054 | AN39: 2055 | AO39: 2056 | AP39: 2057 | AQ39: 2058 | AR39: 2059 | AS39: 2060 | AT39: 2061 | AU39: 2062 | AV39: 2063 | AW39: 2064 | AX39: 2065 | AY39: 2066 | AZ39: 2067 | BA39: 2068 | BB39: 2069 | BC39: 2070
C40: USD Inflation - Base | F40: 1 | H40: 0.03 | I40: 0.03 | J40: 0.03 | K40: 0.03 | L40: 0.03 | M40: 0.03 | N40: 0.03 | O40: 0.03 | P40: 0.03 | Q40: 0.03 | R40: 0.03 | S40: 0.03 | T40: 0.03 | U40: 0.03 | V40: 0.03 | W40: 0.03 | X40: 0.03 | Y40: 0.03 | Z40: 0.03 | AA40: 0.03 | AB40: 0.03 | AC40: 0.03 | AD40: 0.03 | AE40: 0.03 | AF40: 0.03 | AG40: 0.03 | AH40: 0.03 | AI40: 0.03 | AJ40: 0.03 | AK40: 0.03 | AL40: 0.03 | AM40: 0.03 | AN40: 0.03 | AO40: 0.03 | AP40: 0.03 | AQ40: 0.03 | AR40: 0.03 | AS40: 0.03 | AT40: 0.03 | AU40: 0.03 | AV40: 0.03 | AW40: 0.03 | AX40: 0.03 | AY40: 0.03 | AZ40: 0.03 | BA40: 0.03 | BB40: 0.03 | BC40: 0.03
C41: USD Inflation - Changing | F41: 2 | H41: 0.04 | I41: 0.03 | J41: 0.025 | K41: 0.02 | L41: 0.02 | M41: 0.02 | N41: 0.02 | O41: 0.02 | P41: 0.02 | Q41: 0.02 | R41: 0.02 | S41: 0.02 | T41: 0.02 | U41: 0.02 | V41: 0.02 | W41: 0.02 | X41: 0.02 | Y41: 0.02 | Z41: 0.02 | AA41: 0.02 | AB41: 0.02 | AC41: 0.02 | AD41: 0.02 | AE41: 0.02 | AF41: 0.02 | AG41: 0.02 | AH41: 0.02 | AI41: 0.02 | AJ41: 0.02 | AK41: 0.02 | AL41: 0.02 | AM41: 0.02 | AN41: 0.02 | AO41: 0.02 | AP41: 0.02 | AQ41: 0.02 | AR41: 0.02 | AS41: 0.02 | AT41: 0.02 | AU41: 0.02 | AV41: 0.02 | AW41: 0.02 | AX41: 0.02 | AY41: 0.02 | AZ41: 0.02 | BA41: 0.02 | BB41: 0.02 | BC41: 0.02
C42: USD Inflation - High | F42: 3 | H42: 0.04 | I42: 0.04 | J42: 0.04 | K42: 0.04 | L42: 0.04 | M42: 0.04 | N42: 0.04 | O42: 0.04 | P42: 0.04 | Q42: 0.04 | R42: 0.04 | S42: 0.04 | T42: 0.04 | U42: 0.04 | V42: 0.04 | W42: 0.04 | X42: 0.04 | Y42: 0.04 | Z42: 0.04 | AA42: 0.04 | AB42: 0.04 | AC42: 0.04 | AD42: 0.04 | AE42: 0.04 | AF42: 0.04 | AG42: 0.04 | AH42: 0.04 | AI42: 0.04 | AJ42: 0.04 | AK42: 0.04 | AL42: 0.04 | AM42: 0.04 | AN42: 0.04 | AO42: 0.04 | AP42: 0.04 | AQ42: 0.04 | AR42: 0.04 | AS42: 0.04 | AT42: 0.04 | AU42: 0.04 | AV42: 0.04 | AW42: 0.04 | AX42: 0.04 | AY42: 0.04 | AZ42: 0.04 | BA42: 0.04 | BB42: 0.04 | BC42: 0.04
C43: USD Inflation - Low | F43: 4 | H43: 0.02 | I43: 0.02 | J43: 0.02 | K43: 0.02 | L43: 0.02 | M43: 0.02 | N43: 0.02 | O43: 0.02 | P43: 0.02 | Q43: 0.02 | R43: 0.02 | S43: 0.02 | T43: 0.02 | U43: 0.02 | V43: 0.02 | W43: 0.02 | X43: 0.02 | Y43: 0.02 | Z43: 0.02 | AA43: 0.02 | AB43: 0.02 | AC43: 0.02 | AD43: 0.02 | AE43: 0.02 | AF43: 0.02 | AG43: 0.02 | AH43: 0.02 | AI43: 0.02 | AJ43: 0.02 | AK43: 0.02 | AL43: 0.02 | AM43: 0.02 | AN43: 0.02 | AO43: 0.02 | AP43: 0.02 | AQ43: 0.02 | AR43: 0.02 | AS43: 0.02 | AT43: 0.02 | AU43: 0.02 | AV43: 0.02 | AW43: 0.02 | AX43: 0.02 | AY43: 0.02 | AZ43: 0.02 | BA43: 0.02 | BB43: 0.02 | BC43: 0.02
C45: =INDEX(C40:C43,$F$28) -> USD Inflation - Base | H45: =INDEX(H40:H43,$F$28) -> 0.03 | I45: =INDEX(I40:I43,$F$28) -> 0.03 | J45: =INDEX(J40:J43,$F$28) -> 0.03 | K45: =INDEX(K40:K43,$F$28) -> 0.03 | L45: =INDEX(L40:L43,$F$28) -> 0.03 | M45: =INDEX(M40:M43,$F$28) -> 0.03 | N45: =INDEX(N40:N43,$F$28) -> 0.03 | O45: =INDEX(O40:O43,$F$28) -> 0.03 | P45: =INDEX(P40:P43,$F$28) -> 0.03 | Q45: =INDEX(Q40:Q43,$F$28) -> 0.03 | R45: =INDEX(R40:R43,$F$28) -> 0.03 | S45: =INDEX(S40:S43,$F$28) -> 0.03 | T45: =INDEX(T40:T43,$F$28) -> 0.03 | U45: =INDEX(U40:U43,$F$28) -> 0.03 | V45: =INDEX(V40:V43,$F$28) -> 0.03 | W45: =INDEX(W40:W43,$F$28) -> 0.03 | X45: =INDEX(X40:X43,$F$28) -> 0.03 | Y45: =INDEX(Y40:Y43,$F$28) -> 0.03 | Z45: =INDEX(Z40:Z43,$F$28) -> 0.03 | AA45: =INDEX(AA40:AA43,$F$28) -> 0.03 | AB45: =INDEX(AB40:AB43,$F$28) -> 0.03 | AC45: =INDEX(AC40:AC43,$F$28) -> 0.03 | AD45: =INDEX(AD40:AD43,$F$28) -> 0.03 | AE45: =INDEX(AE40:AE43,$F$28) -> 0.03 | AF45: =INDEX(AF40:AF43,$F$28) -> 0.03 | AG45: =INDEX(AG40:AG43,$F$28) -> 0.03 | AH45: =INDEX(AH40:AH43,$F$28) -> 0.03 | AI45: =INDEX(AI40:AI43,$F$28) -> 0.03 | AJ45: =INDEX(AJ40:AJ43,$F$28) -> 0.03 | AK45: =INDEX(AK40:AK43,$F$28) -> 0.03 | AL45: =INDEX(AL40:AL43,$F$28) -> 0.03 | AM45: =INDEX(AM40:AM43,$F$28) -> 0.03 | AN45: =INDEX(AN40:AN43,$F$28) -> 0.03 | AO45: =INDEX(AO40:AO43,$F$28) -> 0.03 | AP45: =INDEX(AP40:AP43,$F$28) -> 0.03 | AQ45: =INDEX(AQ40:AQ43,$F$28) -> 0.03 | AR45: =INDEX(AR40:AR43,$F$28) -> 0.03 | AS45: =INDEX(AS40:AS43,$F$28) -> 0.03 | AT45: =INDEX(AT40:AT43,$F$28) -> 0.03 | AU45: =INDEX(AU40:AU43,$F$28) -> 0.03 | AV45: =INDEX(AV40:AV43,$F$28) -> 0.03 | AW45: =INDEX(AW40:AW43,$F$28) -> 0.03 | AX45: =INDEX(AX40:AX43,$F$28) -> 0.03 | AY45: =INDEX(AY40:AY43,$F$28) -> 0.03 | AZ45: =INDEX(AZ40:AZ43,$F$28) -> 0.03 | BA45: =INDEX(BA40:BA43,$F$28) -> 0.03 | BB45: =INDEX(BB40:BB43,$F$28) -> 0.03 | BC45: =INDEX(BC40:BC43,$F$28) -> 0.03
C47: PPP Exchange | G47: 4 | H47: =G47*(1+H36)/(1+H45) -> 4.233009709 | I47: =H47*(1+I36)/(1+I45) -> 4.479592799 | J47: 4.740539952 | K47: 5.01668791 | L47: 5.308922157 | M47: 5.618179759 | N47: 5.945452366 | O47: 6.291789397 | P47: 6.658301401 | Q47: 7.046163618 | R47: 7.456619752 | S47: 7.890985951 | T47: 8.350655035 | U47: 8.83710096 | V47: 9.35188354 | W47: 9.896653455 | X47: 10.47315754 | Y47: 11.08324439 | Z47: 11.72887027 | AA47: 12.41210543 | AB47: 13.1351407 | AC47: 13.90029453 | AD47: 14.71002042 | AE47: 15.56691482 | AF47: 16.47372539 | AG47: 17.43335988 | AH47: 18.44889541 | AI47: 19.52358834 | AJ47: 20.66088475 | AK47: 21.86443144 | AL47: 23.13808764 | AM47: 24.4859374 | AN47: 25.91230269 | AO47: 27.42175721 | AP47: 29.01914113 | AQ47: 30.70957653 | AR47: 32.4984839 | AS47: 34.39159947 | AT47: 36.39499361 | AU47: 38.51509033 | AV47: 40.75868782 | AW47: 43.13298032 | AX47: 45.64558111 | AY47: 48.304547 | AZ47: 51.11840411 | BA47: 54.09617522 | BB47: 57.24740873 | BC47: 60.58220924
B49: Financing
C50: Debt Size
D51: Target DSCR | F51: x | G51: 1.4
D52: Max Debt to Capital | F52: % | G52: 0.7
D54: Peruvian Debt in Sol | F54: % | G54: 0.6
D55: Tenure | F55: Years | G55: 15
D56: Interest Rate | F56: % | G56: 0.07
D58: US Debt in USD | F58: % | G58: =1-G54 -> 0.4
D59: Tenure | F59: Years | G59: 17
D60: Interest Rate | F60: % | G60: 0.05
D62: Max Debt Tenure | G62: =MAX(G59,G54) -> 17

Sheet Model
B2: Time Line
C3: Periods | I3: 0 | J3: 1 | K3: 2 | L3: 3 | M3: 4 | N3: 5 | O3: 6 | P3: 7 | Q3: 8 | R3: 9 | S3: 10 | T3: 11 | U3: 12 | V3: 13 | W3: 14 | X3: 15 | Y3: 16 | Z3: 17 | AA3: 18 | AB3: 19 | AC3: 20 | AD3: 21 | AE3: 22 | AF3: 23 | AG3: 24 | AH3: 25 | AI3: 26 | AJ3: 27 | AK3: 28 | AL3: 29 | AM3: 30 | AN3: 31 | AO3: 32 | AP3: 33 | AQ3: 34 | AR3: 35 | AS3: 36 | AT3: 37 | AU3: 38 | AV3: 39 | AW3: 40 | AX3: 41 | AY3: 42 | AZ3: 43 | BA3: 44 | BB3: 45 | BC3: 46 | BD3: 47 | BE3: 48 | BF3: 49 | BG3: 50 | BH3: 51 | BI3: 52 | BJ3: 53 | BK3: 54 | BL3: 55 | BM3: 56 | BN3: 57 | BO3: 58 | BP3: 59 | BQ3: 60
C4: Year | I4: 2022 | J4: =IF(J10,I4,I4+1) -> 2023 | K4: =IF(K10,J4,J4+1) -> 2023 | L4: 2024 | M4: 2024 | N4: 2025 | O4: 2025 | P4: 2026 | Q4: 2026 | R4: 2027 | S4: 2027 | T4: 2028 | U4: 2028 | V4: 2029 | W4: 2029 | X4: 2030 | Y4: 2030 | Z4: 2031 | AA4: 2031 | AB4: 2032 | AC4: 2032 | AD4: 2033 | AE4: 2033 | AF4: 2034 | AG4: 2034 | AH4: 2035 | AI4: 2035 | AJ4: 2036 | AK4: 2036 | AL4: 2037 | AM4: 2037 | AN4: 2038 | AO4: 2038 | AP4: 2039 | AQ4: 2039 | AR4: 2040 | AS4: 2040 | AT4: 2041 | AU4: 2041 | AV4: 2042 | AW4: 2042 | AX4: 2043 | AY4: 2043 | AZ4: 2044 | BA4: 2044 | BB4: 2045 | BC4: 2045 | BD4: 2046 | BE4: 2046 | BF4: 2047 | BG4: 2047 | BH4: 2048 | BI4: 2048 | BJ4: 2049 | BK4: 2049 | BL4: 2050 | BM4: 2050 | BN4: 2051 | BO4: 2051 | BP4: 2052 | BQ4: 2052
C5: Construction | F5: =Inputs!F4 -> 1 | I5: =I3<$F$5 -> TRUE | J5: =J3<$F$5 -> FALSE | K5: FALSE | L5: FALSE | M5: FALSE | N5: FALSE | O5: FALSE | P5: FALSE | Q5: FALSE | R5: FALSE | S5: FALSE | T5: FALSE | U5: FALSE | V5: FALSE | W5: FALSE | X5: FALSE | Y5: FALSE | Z5: FALSE | AA5: FALSE | AB5: FALSE | AC5: FALSE | AD5: FALSE | AE5: FALSE | AF5: FALSE | AG5: FALSE | AH5: FALSE | AI5: FALSE | AJ5: FALSE | AK5: FALSE | AL5: FALSE | AM5: FALSE | AN5: FALSE | AO5: FALSE | AP5: FALSE | AQ5: FALSE | AR5: FALSE | AS5: FALSE | AT5: FALSE | AU5: FALSE | AV5: FALSE | AW5: FALSE | AX5: FALSE | AY5: FALSE | AZ5: FALSE | BA5: FALSE | BB5: FALSE | BC5: FALSE | BD5: FALSE | BE5: FALSE | BF5: FALSE | BG5: FALSE | BH5: FALSE | BI5: FALSE | BJ5: FALSE | BK5: FALSE | BL5: FALSE | BM5: FALSE | BN5: FALSE | BO5: FALSE | BP5: FALSE | BQ5: FALSE
C6: Operating | F6: =Inputs!F3 -> 30 | G6: =Inputs!F5 -> 2 | I6: =AND(NOT(I5),I3<$F$6*$G$6) -> FALSE | J6: =AND(NOT(J5),J3<$F$6*$G$6) -> TRUE | K6: TRUE | L6: TRUE | M6: TRUE | N6: TRUE | O6: TRUE | P6: TRUE | Q6: TRUE | R6: TRUE | S6: TRUE | T6: TRUE | U6: TRUE | V6: TRUE | W6: TRUE | X6: TRUE | Y6: TRUE | Z6: TRUE | AA6: TRUE | AB6: TRUE | AC6: TRUE | AD6: TRUE | AE6: TRUE | AF6: TRUE | AG6: TRUE | AH6: TRUE | AI6: TRUE | AJ6: TRUE | AK6: TRUE | AL6: TRUE | AM6: TRUE | AN6: TRUE | AO6: TRUE | AP6: TRUE | AQ6: TRUE | AR6: TRUE | AS6: TRUE | AT6: TRUE | AU6: TRUE | AV6: TRUE | AW6: TRUE | AX6: TRUE | AY6: TRUE | AZ6: TRUE | BA6: TRUE | BB6: TRUE | BC6: TRUE | BD6: TRUE | BE6: TRUE | BF6: TRUE | BG6: TRUE | BH6: TRUE | BI6: TRUE | BJ6: TRUE | BK6: TRUE | BL6: TRUE | BM6: TRUE | BN6: TRUE | BO6: TRUE | BP6: TRUE | BQ6: FALSE
C7: Exchange Rate | F7: SOL/USD | I7: =LOOKUP(I4,Inputs!30:30,Inputs!47:47) -> 4 | J7: =I7*(1+J16)/(1+J17) -> 4.11485587 | K7: =J7*(1+K16)/(1+K17) -> 4.233009709 | L7: 4.354556212 | M7: 4.479592799 | N7: 4.608219681 | O7: 4.740539952 | P7: 4.876659663 | Q7: 5.01668791 | R7: 5.160736924 | S7: 5.308922157 | T7: 5.461362376 | U7: 5.618179759 | V7: 5.779499991 | W7: 5.945452366 | X7: 6.116169893 | Y7: 6.291789397 | Z7: 6.472451634 | AA7: 6.658301401 | AB7: 6.849487652 | AC7: 7.046163618 | AD7: 7.248486932 | AE7: 7.456619752 | AF7: 7.67072889 | AG7: 7.890985951 | AH7: 8.117567466 | AI7: 8.350655035 | AJ7: 8.590435474 | AK7: 8.83710096 | AL7: 9.09084919 | AM7: 9.35188354 | AN7: 9.620413221 | AO7: 9.896653455 | AP7: 10.18082564 | AQ7: 10.47315754 | AR7: 10.77388345 | AS7: 11.08324439 | AT7: 11.40148831 | AU7: 11.72887027 | AV7: 12.06565267 | AW7: 12.41210543 | AX7: 12.76850623 | AY7: 13.1351407 | AZ7: 13.51230271 | BA7: 13.90029453 | BB7: 14.29942714 | BC7: 14.71002042 | BD7: 15.13240348 | BE7: 15.56691482 | BF7: 16.01390271 | BG7: 16.47372539 | BH7: 16.94675141 | BI7: 17.43335988 | BJ7: 17.93394081 | BK7: 18.44889541 | BL7: 18.97863639 | BM7: 19.52358834 | BN7: 20.08418803 | BO7: 20.66088475 | BP7: 21.25414073 | BQ7: 21.86443144
B9: Operations
C10: Seasonal Flag | E10: Flag | I10: =MOD(I3,2)=0 -> TRUE | J10: =MOD(J3,2)=0 -> FALSE | K10: TRUE | L10: FALSE | M10: TRUE | N10: FALSE | O10: TRUE | P10: FALSE | Q10: TRUE | R10: FALSE | S10: TRUE | T10: FALSE | U10: TRUE | V10: FALSE | W10: TRUE | X10: FALSE | Y10: TRUE | Z10: FALSE | AA10: TRUE | AB10: FALSE | AC10: TRUE | AD10: FALSE | AE10: TRUE | AF10: FALSE | AG10: TRUE | AH10: FALSE | AI10: TRUE | AJ10: FALSE | AK10: TRUE | AL10: FALSE | AM10: TRUE | AN10: FALSE | AO10: TRUE | AP10: FALSE | AQ10: TRUE | AR10: FALSE | AS10: TRUE | AT10: FALSE | AU10: TRUE | AV10: FALSE | AW10: TRUE | AX10: FALSE | AY10: TRUE | AZ10: FALSE | BA10: TRUE | BB10: FALSE | BC10: TRUE | BD10: FALSE | BE10: TRUE | BF10: FALSE | BG10: TRUE | BH10: FALSE | BI10: TRUE | BJ10: FALSE | BK10: TRUE | BL10: FALSE | BM10: TRUE | BN10: FALSE | BO10: TRUE | BP10: FALSE | BQ10: TRUE
C11: Generation | E11: MWH | F11: =Inputs!F8 -> 1000 | I11: =$F$11*I6 -> 0 | J11: =$F$11*J6 -> 1000 | K11: 1000 | L11: 1000 | M11: 1000 | N11: 1000 | O11: 1000 | P11: 1000 | Q11: 1000 | R11: 1000 | S11: 1000 | T11: 1000 | U11: 1000 | V11: 1000 | W11: 1000 | X11: 1000 | Y11: 1000 | Z11: 1000 | AA11: 1000 | AB11: 1000 | AC11: 1000 | AD11: 1000 | AE11: 1000 | AF11: 1000 | AG11: 1000 | AH11: 1000 | AI11: 1000 | AJ11: 1000 | AK11: 1000 | AL11: 1000 | AM11: 1000 | AN11: 1000 | AO11: 1000 | AP11: 1000 | AQ11: 1000 | AR11: 1000 | AS11: 1000 | AT11: 1000 | AU11: 1000 | AV11: 1000 | AW11: 1000 | AX11: 1000 | AY11: 1000 | AZ11: 1000 | BA11: 1000 | BB11: 1000 | BC11: 1000 | BD11: 1000 | BE11: 1000 | BF11: 1000 | BG11: 1000 | BH11: 1000 | BI11: 1000 | BJ11: 1000 | BK11: 1000 | BL11: 1000 | BM11: 1000 | BN11: 1000 | BO11: 1000 | BP11: 1000 | BQ11: 0
C12: Seasonality | E12: Factor | F12: =Inputs!F9 -> 1.2 | G12: =Inputs!G9 -> 0.8 | I12: =IF(I10,$F$12,$G$12) -> 1.2 | J12: =IF(J10,$F$12,$G$12) -> 0.8 | K12: 1.2 | L12: 0.8 | M12: 1.2 | N12: 0.8 | O12: 1.2 | P12: 0.8 | Q12: 1.2 | R12: 0.8 | S12: 1.2 | T12: 0.8 | U12: 1.2 | V12: 0.8 | W12: 1.2 | X12: 0.8 | Y12: 1.2 | Z12: 0.8 | AA12: 1.2 | AB12: 0.8 | AC12: 1.2 | AD12: 0.8 | AE12: 1.2 | AF12: 0.8 | AG12: 1.2 | AH12: 0.8 | AI12: 1.2 | AJ12: 0.8 | AK12: 1.2 | AL12: 0.8 | AM12: 1.2 | AN12: 0.8 | AO12: 1.2 | AP12: 0.8 | AQ12: 1.2 | AR12: 0.8 | AS12: 1.2 | AT12: 0.8 | AU12: 1.2 | AV12: 0.8 | AW12: 1.2 | AX12: 0.8 | AY12: 1.2 | AZ12: 0.8 | BA12: 1.2 | BB12: 0.8 | BC12: 1.2 | BD12: 0.8 | BE12: 1.2 | BF12: 0.8 | BG12: 1.2 | BH12: 0.8 | BI12: 1.2 | BJ12: 0.8 | BK12: 1.2 | BL12: 0.8 | BM12: 1.2 | BN12: 0.8 | BO12: 1.2 | BP12: 0.8 | BQ12: 1.2
C13: Seasonal Generation | E13: MWH | I13: =I12*I11 -> 0 | J13: =J12*J11 -> 800 | K13: 1200 | L13: 800 | M13: 1200 | N13: 800 | O13: 1200 | P13: 800 | Q13: 1200 | R13: 800 | S13: 1200 | T13: 800 | U13: 1200 | V13: 800 | W13: 1200 | X13: 800 | Y13: 1200 | Z13: 800 | AA13: 1200 | AB13: 800 | AC13: 1200 | AD13: 800 | AE13: 1200 | AF13: 800 | AG13: 1200 | AH13: 800 | AI13: 1200 | AJ13: 800 | AK13: 1200 | AL13: 800 | AM13: 1200 | AN13: 800 | AO13: 1200 | AP13: 800 | AQ13: 1200 | AR13: 800 | AS13: 1200 | AT13: 800 | AU13: 1200 | AV13: 800 | AW13: 1200 | AX13: 800 | AY13: 1200 | AZ13: 800 | BA13: 1200 | BB13: 800 | BC13: 1200 | BD13: 800 | BE13: 1200 | BF13: 800 | BG13: 1200 | BH13: 800 | BI13: 1200 | BJ13: 800 | BK13: 1200 | BL13: 800 | BM13: 1200 | BN13: 800 | BO13: 1200 | BP13: 800 | BQ13: 0
B15: Macro-econonic
C16: Sol Inflation | I16: =(1+LOOKUP(I4,Inputs!30:30,Inputs!36:36))^(1/2)-1 -> 0 | J16: =(1+LOOKUP(J4,Inputs!30:30,Inputs!36:36))^(1/2)-1 -> 0.04403065089 | K16: =(1+LOOKUP(K4,Inputs!30:30,Inputs!36:36))^(1/2)-1 -> 0.04403065089 | L16: =(1+LOOKUP(L4,Inputs!30:30,Inputs!36:36))^(1/2)-1 -> 0.04403065089 | M16: =(1+LOOKUP(M4,Inputs!30:30,Inputs!36:36))^(1/2)-1 -> 0.04403065089 | N16: =(1+LOOKUP(N4,Inputs!30:30,Inputs!36:36))^(1/2)-1 -> 0.04403065089 | O16: =(1+LOOKUP(O4,Inputs!30:30,Inputs!36:36))^(1/2)-1 -> 0.04403065089 | P16: =(1+LOOKUP(P4,Inputs!30:30,Inputs!36:36))^(1/2)-1 -> 0.04403065089 | Q16: =(1+LOOKUP(Q4,Inputs!30:30,Inputs!36:36))^(1/2)-1 -> 0.04403065089 | R16: =(1+LOOKUP(R4,Inputs!30:30,Inputs!36:36))^(1/2)-1 -> 0.04403065089 | S16: =(1+LOOKUP(S4,Inputs!30:30,Inputs!36:36))^(1/2)-1 -> 0.04403065089 | T16: =(1+LOOKUP(T4,Inputs!30:30,Inputs!36:36))^(1/2)-1 -> 0.04403065089 | U16: =(1+LOOKUP(U4,Inputs!30:30,Inputs!36:36))^(1/2)-1 -> 0.04403065089 | V16: =(1+LOOKUP(V4,Inputs!30:30,Inputs!36:36))^(1/2)-1 -> 0.04403065089 | W16: =(1+LOOKUP(W4,Inputs!30:30,Inputs!36:36))^(1/2)-1 -> 0.04403065089 | X16: =(1+LOOKUP(X4,Inputs!30:30,Inputs!36:36))^(1/2)-1 -> 0.04403065089 | Y16: =(1+LOOKUP(Y4,Inputs!30:30,Inputs!36:36))^(1/2)-1 -> 0.04403065089 | Z16: =(1+LOOKUP(Z4,Inputs!30:30,Inputs!36:36))^(1/2)-1 -> 0.04403065089 | AA16: =(1+LOOKUP(AA4,Inputs!30:30,Inputs!36:36))^(1/2)-1 -> 0.04403065089 | AB16: =(1+LOOKUP(AB4,Inputs!30:30,Inputs!36:36))^(1/2)-1 -> 0.04403065089 | AC16: =(1+LOOKUP(AC4,Inputs!30:30,Inputs!36:36))^(1/2)-1 -> 0.04403065089 | AD16: =(1+LOOKUP(AD4,Inputs!30:30,Inputs!36:36))^(1/2)-1 -> 0.04403065089 | AE16: =(1+LOOKUP(AE4,Inputs!30:30,Inputs!36:36))^(1/2)-1 -> 0.04403065089 | AF16: =(1+LOOKUP(AF4,Inputs!30:30,Inputs!36:36))^(1/2)-1 -> 0.04403065089 | AG16: =(1+LOOKUP(AG4,Inputs!30:30,Inputs!36:36))^(1/2)-1 -> 0.04403065089 | AH16: =(1+LOOKUP(AH4,Inputs!30:30,Inputs!36:36))^(1/2)-1 -> 0.04403065089 | AI16: =(1+LOOKUP(AI4,Inputs!30:30,Inputs!36:36))^(1/2)-1 -> 0.04403065089 | AJ16: =(1+LOOKUP(AJ4,Inputs!30:30,Inputs!36:36))^(1/2)-1 -> 0.04403065089 | AK16: =(1+LOOKUP(AK4,Inputs!30:30,Inputs!36:36))^(1/2)-1 -> 0.04403065089 | AL16: =(1+LOOKUP(AL4,Inputs!30:30,Inputs!36:36))^(1/2)-1 -> 0.04403065089 | AM16: =(1+LOOKUP(AM4,Inputs!30:30,Inputs!36:36))^(1/2)-1 -> 0.04403065089 | AN16: =(1+LOOKUP(AN4,Inputs!30:30,Inputs!36:36))^(1/2)-1 -> 0.04403065089 | AO16: =(1+LOOKUP(AO4,Inputs!30:30,Inputs!36:36))^(1/2)-1 -> 0.04403065089 | AP16: =(1+LOOKUP(AP4,Inputs!30:30,Inputs!36:36))^(1/2)-1 -> 0.04403065089 | AQ16: =(1+LOOKUP(AQ4,Inputs!30:30,Inputs!36:36))^(1/2)-1 -> 0.04403065089 | AR16: =(1+LOOKUP(AR4,Inputs!30:30,Inputs!36:36))^(1/2)-1 -> 0.04403065089 | AS16: =(1+LOOKUP(AS4,Inputs!30:30,Inputs!36:36))^(1/2)-1 -> 0.04403065089 | AT16: =(1+LOOKUP(AT4,Inputs!30:30,Inputs!36:36))^(1/2)-1 -> 0.04403065089 | AU16: =(1+LOOKUP(AU4,Inputs!30:30,Inputs!36:36))^(1/2)-1 -> 0.04403065089 | AV16: =(1+LOOKUP(AV4,Inputs!30:30,Inputs!36:36))^(1/2)-1 -> 0.04403065089 | AW16: =(1+LOOKUP(AW4,Inputs!30:30,Inputs!36:36))^(1/2)-1 -> 0.04403065089 | AX16: =(1+LOOKUP(AX4,Inputs!30:30,Inputs!36:36))^(1/2)-1 -> 0.04403065089 | AY16: =(1+LOOKUP(AY4,Inputs!30:30,Inputs!36:36))^(1/2)-1 -> 0.04403065089 | AZ16: =(1+LOOKUP(AZ4,Inputs!30:30,Inputs!36:36))^(1/2)-1 -> 0.04403065089 | BA16: =(1+LOOKUP(BA4,Inputs!30:30,Inputs!36:36))^(1/2)-1 -> 0.04403065089 | BB16: =(1+LOOKUP(BB4,Inputs!30:30,Inputs!36:36))^(1/2)-1 -> 0.04403065089 | BC16: =(1+LOOKUP(BC4,Inputs!30:30,Inputs!36:36))^(1/2)-1 -> 0.04403065089 | BD16: =(1+LOOKUP(BD4,Inputs!30:30,Inputs!36:36))^(1/2)-1 -> 0.04403065089 | BE16: =(1+LOOKUP(BE4,Inputs!30:30,Inputs!36:36))^(1/2)-1 -> 0.04403065089 | BF16: =(1+LOOKUP(BF4,Inputs!30:30,Inputs!36:36))^(1/2)-1 -> 0.04403065089 | BG16: =(1+LOOKUP(BG4,Inputs!30:30,Inputs!36:36))^(1/2)-1 -> 0.04403065089 | BH16: =(1+LOOKUP(BH4,Inputs!30:30,Inputs!36:36))^(1/2)-1 -> 0.04403065089 | BI16: =(1+LOOKUP(BI4,Inputs!30:30,Inputs!36:36))^(1/2)-1 -> 0.04403065089 | BJ16: =(1+LOOKUP(BJ4,Inputs!30:30,Inputs!36:36))^(1/2)-1 -> 0.04403065089 | BK16: =(1+LOOKUP(BK4,Inputs!30:30,Inputs!36:36))^(1/2)-1 -> 0.04403065089 | BL16: =(1+LOOKUP(BL4,Inputs!30:30,Inputs!36:36))^(1/2)-1 -> 0.04403065089 | BM16: =(1+LOOKUP(BM4,Inputs!30:30,Inputs!36:36))^(1/2)-1 -> 0.04403065089 | BN16: =(1+LOOKUP(BN4,Inputs!30:30,Inputs!36:36))^(1/2)-1 -> 0.04403065089 | BO16: =(1+LOOKUP(BO4,Inputs!30:30,Inputs!36:36))^(1/2)-1 -> 0.04403065089 | BP16: =(1+LOOKUP(BP4,Inputs!30:30,Inputs!36:36))^(1/2)-1 -> 0.04403065089 | BQ16: =(1+LOOKUP(BQ4,Inputs!30:30,Inputs!36:36))^(1/2)-1 -> 0.04403065089
C17: USD Inflation | I17: =(1+LOOKUP(I4,Inputs!39:39,Inputs!45:45))^(1/2)-1 -> 0 | J17: =(1+LOOKUP(J4,Inputs!39:39,Inputs!45:45))^(1/2)-1 -> 0.01488915651 | K17: =(1+LOOKUP(K4,Inputs!39:39,Inputs!45:45))^(1/2)-1 -> 0.01488915651 | L17: =(1+LOOKUP(L4,Inputs!39:39,Inputs!45:45))^(1/2)-1 -> 0.01488915651 | M17: =(1+LOOKUP(M4,Inputs!39:39,Inputs!45:45))^(1/2)-1 -> 0.01488915651 | N17: =(1+LOOKUP(N4,Inputs!39:39,Inputs!45:45))^(1/2)-1 -> 0.01488915651 | O17: =(1+LOOKUP(O4,Inputs!39:39,Inputs!45:45))^(1/2)-1 -> 0.01488915651 | P17: =(1+LOOKUP(P4,Inputs!39:39,Inputs!45:45))^(1/2)-1 -> 0.01488915651 | Q17: =(1+LOOKUP(Q4,Inputs!39:39,Inputs!45:45))^(1/2)-1 -> 0.01488915651 | R17: =(1+LOOKUP(R4,Inputs!39:39,Inputs!45:45))^(1/2)-1 -> 0.01488915651 | S17: =(1+LOOKUP(S4,Inputs!39:39,Inputs!45:45))^(1/2)-1 -> 0.01488915651 | T17: =(1+LOOKUP(T4,Inputs!39:39,Inputs!45:45))^(1/2)-1 -> 0.01488915651 | U17: =(1+LOOKUP(U4,Inputs!39:39,Inputs!45:45))^(1/2)-1 -> 0.01488915651 | V17: =(1+LOOKUP(V4,Inputs!39:39,Inputs!45:45))^(1/2)-1 -> 0.01488915651 | W17: =(1+LOOKUP(W4,Inputs!39:39,Inputs!45:45))^(1/2)-1 -> 0.01488915651 | X17: =(1+LOOKUP(X4,Inputs!39:39,Inputs!45:45))^(1/2)-1 -> 0.01488915651 | Y17: =(1+LOOKUP(Y4,Inputs!39:39,Inputs!45:45))^(1/2)-1 -> 0.01488915651 | Z17: =(1+LOOKUP(Z4,Inputs!39:39,Inputs!45:45))^(1/2)-1 -> 0.01488915651 | AA17: =(1+LOOKUP(AA4,Inputs!39:39,Inputs!45:45))^(1/2)-1 -> 0.01488915651 | AB17: =(1+LOOKUP(AB4,Inputs!39:39,Inputs!45:45))^(1/2)-1 -> 0.01488915651 | AC17: =(1+LOOKUP(AC4,Inputs!39:39,Inputs!45:45))^(1/2)-1 -> 0.01488915651 | AD17: =(1+LOOKUP(AD4,Inputs!39:39,Inputs!45:45))^(1/2)-1 -> 0.01488915651 | AE17: =(1+LOOKUP(AE4,Inputs!39:39,Inputs!45:45))^(1/2)-1 -> 0.01488915651 | AF17: =(1+LOOKUP(AF4,Inputs!39:39,Inputs!45:45))^(1/2)-1 -> 0.01488915651 | AG17: =(1+LOOKUP(AG4,Inputs!39:39,Inputs!45:45))^(1/2)-1 -> 0.01488915651 | AH17: =(1+LOOKUP(AH4,Inputs!39:39,Inputs!45:45))^(1/2)-1 -> 0.01488915651 | AI17: =(1+LOOKUP(AI4,Inputs!39:39,Inputs!45:45))^(1/2)-1 -> 0.01488915651 | AJ17: =(1+LOOKUP(AJ4,Inputs!39:39,Inputs!45:45))^(1/2)-1 -> 0.01488915651 | AK17: =(1+LOOKUP(AK4,Inputs!39:39,Inputs!45:45))^(1/2)-1 -> 0.01488915651 | AL17: =(1+LOOKUP(AL4,Inputs!39:39,Inputs!45:45))^(1/2)-1 -> 0.01488915651 | AM17: =(1+LOOKUP(AM4,Inputs!39:39,Inputs!45:45))^(1/2)-1 -> 0.01488915651 | AN17: =(1+LOOKUP(AN4,Inputs!39:39,Inputs!45:45))^(1/2)-1 -> 0.01488915651 | AO17: =(1+LOOKUP(AO4,Inputs!39:39,Inputs!45:45))^(1/2)-1 -> 0.01488915651 | AP17: =(1+LOOKUP(AP4,Inputs!39:39,Inputs!45:45))^(1/2)-1 -> 0.01488915651 | AQ17: =(1+LOOKUP(AQ4,Inputs!39:39,Inputs!45:45))^(1/2)-1 -> 0.01488915651 | AR17: =(1+LOOKUP(AR4,Inputs!39:39,Inputs!45:45))^(1/2)-1 -> 0.01488915651 | AS17: =(1+LOOKUP(AS4,Inputs!39:39,Inputs!45:45))^(1/2)-1 -> 0.01488915651 | AT17: =(1+LOOKUP(AT4,Inputs!39:39,Inputs!45:45))^(1/2)-1 -> 0.01488915651 | AU17: =(1+LOOKUP(AU4,Inputs!39:39,Inputs!45:45))^(1/2)-1 -> 0.01488915651 | AV17: =(1+LOOKUP(AV4,Inputs!39:39,Inputs!45:45))^(1/2)-1 -> 0.01488915651 | AW17: =(1+LOOKUP(AW4,Inputs!39:39,Inputs!45:45))^(1/2)-1 -> 0.01488915651 | AX17: =(1+LOOKUP(AX4,Inputs!39:39,Inputs!45:45))^(1/2)-1 -> 0.01488915651 | AY17: =(1+LOOKUP(AY4,Inputs!39:39,Inputs!45:45))^(1/2)-1 -> 0.01488915651 | AZ17: =(1+LOOKUP(AZ4,Inputs!39:39,Inputs!45:45))^(1/2)-1 -> 0.01488915651 | BA17: =(1+LOOKUP(BA4,Inputs!39:39,Inputs!45:45))^(1/2)-1 -> 0.01488915651 | BB17: =(1+LOOKUP(BB4,Inputs!39:39,Inputs!45:45))^(1/2)-1 -> 0.01488915651 | BC17: =(1+LOOKUP(BC4,Inputs!39:39,Inputs!45:45))^(1/2)-1 -> 0.01488915651 | BD17: =(1+LOOKUP(BD4,Inputs!39:39,Inputs!45:45))^(1/2)-1 -> 0.01488915651 | BE17: =(1+LOOKUP(BE4,Inputs!39:39,Inputs!45:45))^(1/2)-1 -> 0.01488915651 | BF17: =(1+LOOKUP(BF4,Inputs!39:39,Inputs!45:45))^(1/2)-1 -> 0.01488915651 | BG17: =(1+LOOKUP(BG4,Inputs!39:39,Inputs!45:45))^(1/2)-1 -> 0.01488915651 | BH17: =(1+LOOKUP(BH4,Inputs!39:39,Inputs!45:45))^(1/2)-1 -> 0.01488915651 | BI17: =(1+LOOKUP(BI4,Inputs!39:39,Inputs!45:45))^(1/2)-1 -> 0.01488915651 | BJ17: =(1+LOOKUP(BJ4,Inputs!39:39,Inputs!45:45))^(1/2)-1 -> 0.01488915651 | BK17: =(1+LOOKUP(BK4,Inputs!39:39,Inputs!45:45))^(1/2)-1 -> 0.01488915651 | BL17: =(1+LOOKUP(BL4,Inputs!39:39,Inputs!45:45))^(1/2)-1 -> 0.01488915651 | BM17: =(1+LOOKUP(BM4,Inputs!39:39,Inputs!45:45))^(1/2)-1 -> 0.01488915651 | BN17: =(1+LOOKUP(BN4,Inputs!39:39,Inputs!45:45))^(1/2)-1 -> 0.01488915651 | BO17: =(1+LOOKUP(BO4,Inputs!39:39,Inputs!45:45))^(1/2)-1 -> 0.01488915651 | BP17: =(1+LOOKUP(BP4,Inputs!39:39,Inputs!45:45))^(1/2)-1 -> 0.01488915651 | BQ17: =(1+LOOKUP(BQ4,Inputs!39:39,Inputs!45:45))^(1/2)-1 -> 0.01488915651
C18: Exchange Rate
B20: Revenues, Op Exp, Cap Exp
C21: PPA Price | E21: Sol/MWH | F21: =Inputs!F16 -> 80 | I21: =$F$21 -> 80 | J21: =$F$21 -> 80 | K21: 80 | L21: 80 | M21: 80 | N21: 80 | O21: 80 | P21: 80 | Q21: 80 | R21: 80 | S21: 80 | T21: 80 | U21: 80 | V21: 80 | W21: 80 | X21: 80 | Y21: 80 | Z21: 80 | AA21: 80 | AB21: 80 | AC21: 80 | AD21: 80 | AE21: 80 | AF21: 80 | AG21: 80 | AH21: 80 | AI21: 80 | AJ21: 80 | AK21: 80 | AL21: 80 | AM21: 80 | AN21: 80 | AO21: 80 | AP21: 80 | AQ21: 80 | AR21: 80 | AS21: 80 | AT21: 80 | AU21: 80 | AV21: 80 | AW21: 80 | AX21: 80 | AY21: 80 | AZ21: 80 | BA21: 80 | BB21: 80 | BC21: 80 | BD21: 80 | BE21: 80 | BF21: 80 | BG21: 80 | BH21: 80 | BI21: 80 | BJ21: 80 | BK21: 80 | BL21: 80 | BM21: 80 | BN21: 80 | BO21: 80 | BP21: 80 | BQ21: 80
C22: Inflation Index | E22: Index | H22: 1 | I22: =H22*(1+I16*I6) -> 1 | J22: =I22*(1+J16*J6) -> 1.044030651 | K22: 1.09 | L22: 1.137993409 | M22: 1.1881 | N22: 1.240412816 | O22: 1.295029 | P22: 1.35204997 | Q22: 1.41158161 | R22: 1.473734467 | S22: 1.538623955 | T22: 1.606370569 | U22: 1.677100111 | V22: 1.75094392 | W22: 1.828039121 | X22: 1.908528873 | Y22: 1.992562642 | Z22: 2.080296472 | AA22: 2.171893279 | AB22: 2.267523154 | AC22: 2.367363675 | AD22: 2.471600238 | AE22: 2.580426405 | AF22: 2.69404426 | AG22: 2.812664782 | AH22: 2.936508243 | AI22: 3.065804612 | AJ22: 3.200793985 | AK22: 3.341727027 | AL22: 3.488865443 | AM22: 3.64248246 | AN22: 3.802863333 | AO22: 3.970305881 | AP22: 4.145121033 | AQ22: 4.32763341 | AR22: 4.518181926 | AS22: 4.717120417 | AT22: 4.9248183 | AU22: 5.141661255 | AV22: 5.368051947 | AW22: 5.604410768 | AX22: 5.851176622 | AY22: 6.108807737 | AZ22: 6.377782518 | BA22: 6.658600433 | BB22: 6.951782944 | BC22: 7.257874472 | BD22: 7.577443409 | BE22: 7.911083175 | BF22: 8.259413316 | BG22: 8.62308066 | BH22: 9.002760515 | BI22: 9.39915792 | BJ22: 9.813008961 | BK22: 10.24508213 | BL22: 10.69617977 | BM22: 11.16713952 | BN22: 11.65883595 | BO22: 12.17218208 | BP22: 12.70813118 | BQ22: 12.70813118
C23: Inflated Price | E23: Sol/MWH | I23: =I21*I22 -> 80 | J23: =J21*J22 -> 83.52245207 | K23: 87.2 | L23: 91.03947276 | M23: 95.048 | N23: 99.23302531 | O23: 103.60232 | P23: 108.1639976 | Q23: 112.9265288 | R23: 117.8987574 | S23: 123.0899164 | T23: 128.5096455 | U23: 134.1680089 | V23: 140.0755136 | W23: 146.2431297 | X23: 152.6823099 | Y23: 159.4050113 | Z23: 166.4237177 | AA23: 173.7514624 | AB23: 181.4018523 | AC23: 189.389094 | AD23: 197.728019 | AE23: 206.4341124 | AF23: 215.5235408 | AG23: 225.0131825 | AH23: 234.9206594 | AI23: 245.264369 | AJ23: 256.0635188 | AK23: 267.3381622 | AL23: 279.1092355 | AM23: 291.3985968 | AN23: 304.2290667 | AO23: 317.6244705 | AP23: 331.6096827 | AQ23: 346.2106728 | AR23: 361.4545541 | AS23: 377.3696334 | AT23: 393.985464 | AU23: 411.3329004 | AV23: 429.4441557 | AW23: 448.3528614 | AX23: 468.0941297 | AY23: 488.704619 | AZ23: 510.2226014 | BA23: 532.6880347 | BB23: 556.1426355 | BC23: 580.6299578 | BD23: 606.1954727 | BE23: 632.886654 | BF23: 660.7530653 | BG23: 689.8464528 | BH23: 720.2208412 | BI23: 751.9326336 | BJ23: 785.0407169 | BK23: 819.6065706 | BL23: 855.6943814 | BM23: 893.371162 | BN23: 932.7068757 | BO23: 973.7745665 | BP23: 1016.650495 | BQ23: 1016.650495
D24: Revenues | E24: Sol | I24: =I23*I13 -> 0 | J24: =J23*J13 -> 66817.96166 | K24: 104640 | L24: 72831.57821 | M24: 114057.6 | N24: 79386.42024 | O24: 124322.784 | P24: 86531.19807 | Q24: 135511.8346 | R24: 94319.00589 | S24: 147707.8997 | T24: 102807.7164 | U24: 161001.6106 | V24: 112060.4109 | W24: 175491.7556 | X24: 122145.8479 | Y24: 191286.0136 | Z24: 133138.9742 | AA24: 208501.7548 | AB24: 145121.4819 | AC24: 227266.9128 | AD24: 158182.4152 | AE24: 247720.9349 | AF24: 172418.8326 | AG24: 270015.8191 | AH24: 187936.5275 | AI24: 294317.2428 | AJ24: 204850.815 | AK24: 320805.7946 | AL24: 223287.3884 | AM24: 349678.3161 | AN24: 243383.2533 | AO24: 381149.3646 | AP24: 265287.7461 | AQ24: 415452.8074 | AR24: 289163.6433 | AS24: 452843.5601 | AT24: 315188.3712 | AU24: 493599.4805 | AV24: 343555.3246 | AW24: 538023.4337 | AX24: 374475.3038 | AY24: 586445.5427 | AZ24: 408178.0811 | BA24: 639225.6416 | BB24: 444914.1084 | BC24: 696755.9493 | BD24: 484956.3782 | BE24: 759463.9848 | BF24: 528602.4522 | BG24: 827815.7434 | BH24: 576176.6729 | BI24: 902319.1603 | BJ24: 628032.5735 | BK24: 983527.8847 | BL24: 684555.5051 | BM24: 1072045.394 | BN24: 746165.5006 | BO24: 1168529.48 | BP24: 813320.3956 | BQ24: 0
C26: O&M
D27: O&M No Inflation | E27: Sol | F27: =Inputs!F25 -> 24000 | I27: =$F$27*I6 -> 0 | J27: =$F$27*J6 -> 24000 | K27: 24000 | L27: 24000 | M27: 24000 | N27: 24000 | O27: 24000 | P27: 24000 | Q27: 24000 | R27: 24000 | S27: 24000 | T27: 24000 | U27: 24000 | V27: 24000 | W27: 24000 | X27: 24000 | Y27: 24000 | Z27: 24000 | AA27: 24000 | AB27: 24000 | AC27: 24000 | AD27: 24000 | AE27: 24000 | AF27: 24000 | AG27: 24000 | AH27: 24000 | AI27: 24000 | AJ27: 24000 | AK27: 24000 | AL27: 24000 | AM27: 24000 | AN27: 24000 | AO27: 24000 | AP27: 24000 | AQ27: 24000 | AR27: 24000 | AS27: 24000 | AT27: 24000 | AU27: 24000 | AV27: 24000 | AW27: 24000 | AX27: 24000 | AY27: 24000 | AZ27: 24000 | BA27: 24000 | BB27: 24000 | BC27: 24000 | BD27: 24000 | BE27: 24000 | BF27: 24000 | BG27: 24000 | BH27: 24000 | BI27: 24000 | BJ27: 24000 | BK27: 24000 | BL27: 24000 | BM27: 24000 | BN27: 24000 | BO27: 24000 | BP27: 24000 | BQ27: 0
D28: O&M With Inflation | E28: Sol | I28: =I27*I22 -> 0 | J28: =J27*J22 -> 25056.73562 | K28: 26160 | L28: 27311.84183 | M28: 28514.4 | N28: 29769.90759 | O28: 31080.696 | P28: 32449.19928 | Q28: 33877.95864 | R28: 35369.62721 | S28: 36926.97492 | T28: 38552.89366 | U28: 40250.40266 | V28: 42022.65409 | W28: 43872.9389 | X28: 45804.69296 | Y28: 47821.5034 | Z28: 49927.11532 | AA28: 52125.43871 | AB28: 54420.5557 | AC28: 56816.72819 | AD28: 59318.40571 | AE28: 61930.23373 | AF28: 64657.06223 | AG28: 67503.95476 | AH28: 70476.19783 | AI28: 73579.31069 | AJ28: 76819.05563 | AK28: 80201.44865 | AL28: 83732.77064 | AM28: 87419.57903 | AN28: 91268.72 | AO28: 95287.34115 | AP28: 99482.9048 | AQ28: 103863.2018 | AR28: 108436.3662 | AS28: 113210.89 | AT28: 118195.6392 | AU28: 123399.8701 | AV28: 128833.2467 | AW28: 134505.8584 | AX28: 140428.2389 | AY28: 146611.3857 | AZ28: 153066.7804 | BA28: 159806.4104 | BB28: 166842.7907 | BC28: 174188.9873 | BD28: 181858.6418 | BE28: 189865.9962 | BF28: 198225.9196 | BG28: 206953.9358 | BH28: 216066.2523 | BI28: 225579.7901 | BJ28: 235512.2151 | BK28: 245881.9712 | BL28: 256708.3144 | BM28: 268011.3486 | BN28: 279812.0627 | BO28: 292132.37 | BP28: 304995.1484 | BQ28: 0
C30: Cap Exp | E30: Sol | F30: =Inputs!F24 -> 1120000 | I30: =$F$30*I5 -> 1120000 | J30: =$F$30*J5 -> 0 | K30: 0 | L30: 0 | M30: 0 | N30: 0 | O30: 0 | P30: 0 | Q30: 0 | R30: 0 | S30: 0 | T30: 0 | U30: 0 | V30: 0 | W30: 0 | X30: 0 | Y30: 0 | Z30: 0 | AA30: 0 | AB30: 0 | AC30: 0 | AD30: 0 | AE30: 0 | AF30: 0 | AG30: 0 | AH30: 0 | AI30: 0 | AJ30: 0 | AK30: 0 | AL30: 0 | AM30: 0 | AN30: 0 | AO30: 0 | AP30: 0 | AQ30: 0 | AR30: 0 | AS30: 0 | AT30: 0 | AU30: 0 | AV30: 0 | AW30: 0 | AX30: 0 | AY30: 0 | AZ30: 0 | BA30: 0 | BB30: 0 | BC30: 0 | BD30: 0 | BE30: 0 | BF30: 0 | BG30: 0 | BH30: 0 | BI30: 0 | BJ30: 0 | BK30: 0 | BL30: 0 | BM30: 0 | BN30: 0 | BO30: 0 | BP30: 0 | BQ30: 0
C32: Operating Cash Flow Pre-tax | E32: Sol | I32: =I24-I28-I30 -> -1120000 | J32: =J24-J28-J30 -> 41761.22604 | K32: 78480 | L32: 45519.73638 | M32: 85543.2 | N32: 49616.51265 | O32: 93242.088 | P32: 54081.99879 | Q32: 101633.8759 | R32: 58949.37868 | S32: 110780.9248 | T32: 64254.82276 | U32: 120751.208 | V32: 70037.75681 | W32: 131618.8167 | X32: 76341.15493 | Y32: 143464.5102 | Z32: 83211.85887 | AA32: 156376.3161 | AB32: 90700.92617 | AC32: 170450.1846 | AD32: 98864.00952 | AE32: 185790.7012 | AF32: 107761.7704 | AG32: 202511.8643 | AH32: 117460.3297 | AI32: 220737.9321 | AJ32: 128031.7594 | AK32: 240604.346 | AL32: 139554.6177 | AM32: 262258.7371 | AN32: 152114.5333 | AO32: 285862.0234 | AP32: 165804.8413 | AQ32: 311589.6055 | AR32: 180727.277 | AS32: 339632.67 | AT32: 196992.732 | AU32: 370199.6103 | AV32: 214722.0779 | AW32: 403517.5753 | AX32: 234047.0649 | AY32: 439834.1571 | AZ32: 255111.3007 | BA32: 479419.2312 | BB32: 278071.3178 | BC32: 522566.962 | BD32: 303097.7364 | BE32: 569597.9886 | BF32: 330376.5326 | BG32: 620861.8075 | BH32: 360110.4206 | BI32: 676739.3702 | BJ32: 392520.3584 | BK32: 737645.9135 | BL32: 427847.1907 | BM32: 804034.0458 | BN32: 466353.4379 | BO32: 876397.1099 | BP32: 508325.2473 | BQ32: 0
C33: Project IRR | E33: Sol | F33: =IRR(I32:BQ32) -> 0.09223135288
C35: Operating Cash Flow Pre-tax | E35: USD | I35: =I32/I7 -> -280000 | J35: =J32/J7 -> 10148.89157 | K35: 18540 | L35: 10453.35831 | M35: 19096.2 | N35: 10766.95906 | O35: 19669.086 | P35: 11089.96783 | Q35: 20259.15858 | R35: 11422.66687 | S35: 20866.93334 | T35: 11765.34687 | U35: 21492.94134 | V35: 12118.30728 | W35: 22137.72958 | X35: 12481.8565 | Y35: 22801.86146 | Z35: 12856.31219 | AA35: 23485.91731 | AB35: 13242.00156 | AC35: 24190.49483 | AD35: 13639.26161 | AE35: 24916.20967 | AF35: 14048.43945 | AG35: 25663.69596 | AH35: 14469.89264 | AI35: 26433.60684 | AJ35: 14903.98942 | AK35: 27226.61505 | AL35: 15351.1091 | AM35: 28043.4135 | AN35: 15811.64237 | AO35: 28884.7159 | AP35: 16285.99164 | AQ35: 29751.25738 | AR35: 16774.57139 | AS35: 30643.7951 | AT35: 17277.80854 | AU35: 31563.10896 | AV35: 17796.14279 | AW35: 32510.00222 | AX35: 18330.02708 | AY35: 33485.30229 | AZ35: 18879.92789 | BA35: 34489.86136 | BB35: 19446.32572 | BC35: 35524.5572 | BD35: 20029.7155 | BE35: 36590.29392 | BF35: 20630.60696 | BG35: 37688.00273 | BH35: 21249.52517 | BI35: 38818.64282 | BJ35: 21887.01092 | BK35: 39983.2021 | BL35: 22543.62125 | BM35: 41182.69816 | BN35: 23219.92989 | BO35: 42418.17911 | BP35: 23916.52779 | BQ35: 0
C36: Project IRR | E36: USD | F36: =IRR(I35:BQ35) -> 0.06174445692
C38: LCOE
D39: Real Revenues | I39: =I24/I22 -> 0 | J39: =J24/J22 -> 64000 | K39: 96000 | L39: 64000 | M39: 96000 | N39: 64000 | O39: 96000 | P39: 64000 | Q39: 96000 | R39: 64000 | S39: 96000 | T39: 64000 | U39: 96000 | V39: 64000 | W39: 96000 | X39: 64000 | Y39: 96000 | Z39: 64000 | AA39: 96000 | AB39: 64000 | AC39: 96000 | AD39: 64000 | AE39: 96000 | AF39: 64000 | AG39: 96000 | AH39: 64000 | AI39: 96000 | AJ39: 64000 | AK39: 96000 | AL39: 64000 | AM39: 96000 | AN39: 64000 | AO39: 96000 | AP39: 64000 | AQ39: 96000 | AR39: 64000 | AS39: 96000 | AT39: 64000 | AU39: 96000 | AV39: 64000 | AW39: 96000 | AX39: 64000 | AY39: 96000 | AZ39: 64000 | BA39: 96000 | BB39: 64000 | BC39: 96000 | BD39: 64000 | BE39: 96000 | BF39: 64000 | BG39: 96000 | BH39: 64000 | BI39: 96000 | BJ39: 64000 | BK39: 96000 | BL39: 64000 | BM39: 96000 | BN39: 64000 | BO39: 96000 | BP39: 64000 | BQ39: 0
D40: PV of Real Revenues | E40: 0.04 | F40: =NPV(E40,J39:BQ39) -> 1793655.834
D41: PV of Generation | E41: 0.04 | F41: =NPV(E41,J13:BQ13) -> 22420.69792
D42: Real LCOE | E42: SOL/MWH | F42: =F40/F41 -> 80
B44: Part 1: Aggregate Debt Portion
C45: Maximum Debt Tenure | E45: Years | F45: =Inputs!G62*2 -> 34 | I45: =AND(I6,I3<=$F$45) -> FALSE | J45: =AND(J6,J3<=$F$45) -> TRUE | K45: TRUE | L45: TRUE | M45: TRUE | N45: TRUE | O45: TRUE | P45: TRUE | Q45: TRUE | R45: TRUE | S45: TRUE | T45: TRUE | U45: TRUE | V45: TRUE | W45: TRUE | X45: TRUE | Y45: TRUE | Z45: TRUE | AA45: TRUE | AB45: TRUE | AC45: TRUE | AD45: TRUE | AE45: TRUE | AF45: TRUE | AG45: TRUE | AH45: TRUE | AI45: TRUE | AJ45: TRUE | AK45: TRUE | AL45: TRUE | AM45: TRUE | AN45: TRUE | AO45: TRUE | AP45: TRUE | AQ45: TRUE | AR45: FALSE | AS45: FALSE | AT45: FALSE | AU45: FALSE | AV45: FALSE | AW45: FALSE | AX45: FALSE | AY45: FALSE | AZ45: FALSE | BA45: FALSE | BB45: FALSE | BC45: FALSE | BD45: FALSE | BE45: FALSE | BF45: FALSE | BG45: FALSE | BH45: FALSE | BI45: FALSE | BJ45: FALSE | BK45: FALSE | BL45: FALSE | BM45: FALSE | BN45: FALSE | BO45: FALSE | BP45: FALSE | BQ45: FALSE
C46: CFADS over Tenure | E46: Sol | I46: =IF(I45,I24-I28) -> FALSE | J46: =IF(J45,J24-J28) -> 41761.22604 | K46: 78480 | L46: 45519.73638 | M46: 85543.2 | N46: 49616.51265 | O46: 93242.088 | P46: 54081.99879 | Q46: 101633.8759 | R46: 58949.37868 | S46: 110780.9248 | T46: 64254.82276 | U46: 120751.208 | V46: 70037.75681 | W46: 131618.8167 | X46: 76341.15493 | Y46: 143464.5102 | Z46: 83211.85887 | AA46: 156376.3161 | AB46: 90700.92617 | AC46: 170450.1846 | AD46: 98864.00952 | AE46: 185790.7012 | AF46: 107761.7704 | AG46: 202511.8643 | AH46: 117460.3297 | AI46: 220737.9321 | AJ46: 128031.7594 | AK46: 240604.346 | AL46: 139554.6177 | AM46: 262258.7371 | AN46: 152114.5333 | AO46: 285862.0234 | AP46: 165804.8413 | AQ46: 311589.6055 | AR46: FALSE | AS46: FALSE | AT46: FALSE | AU46: FALSE | AV46: FALSE | AW46: FALSE | AX46: FALSE | AY46: FALSE | AZ46: FALSE | BA46: FALSE | BB46: FALSE | BC46: FALSE | BD46: FALSE | BE46: FALSE | BF46: FALSE | BG46: FALSE | BH46: FALSE | BI46: FALSE | BJ46: FALSE | BK46: FALSE | BL46: FALSE | BM46: FALSE | BN46: FALSE | BO46: FALSE | BP46: FALSE | BQ46: FALSE
C47: Target Debt Service | E47: Sol | F47: =Inputs!G51 -> 1.4 | I47: =IF(I45,I46/$F$47) -> FALSE | J47: =IF(J45,J46/$F$47) -> 29829.44717 | K47: 56057.14286 | L47: 32514.09741 | M47: 61102.28571 | N47: 35440.36618 | O47: 66601.49143 | P47: 38629.99914 | Q47: 72595.62566 | R47: 42106.69906 | S47: 79129.23197 | T47: 45896.30197 | U47: 86250.86284 | V47: 50026.96915 | W47: 94013.4405 | X47: 54529.39638 | Y47: 102474.6501 | Z47: 59437.04205 | AA47: 111697.3687 | AB47: 64786.37583 | AC47: 121750.1318 | AD47: 70617.14966 | AE47: 132707.6437 | AF47: 76972.69313 | AG47: 144651.3316 | AH47: 83900.23551 | AI47: 157669.9515 | AJ47: 91451.25671 | AK47: 171860.2471 | AL47: 99681.86981 | AM47: 187327.6694 | AN47: 108653.2381 | AO47: 204187.1596 | AP47: 118432.0295 | AQ47: 222564.004 | AR47: FALSE | AS47: FALSE | AT47: FALSE | AU47: FALSE | AV47: FALSE | AW47: FALSE | AX47: FALSE | AY47: FALSE | AZ47: FALSE | BA47: FALSE | BB47: FALSE | BC47: FALSE | BD47: FALSE | BE47: FALSE | BF47: FALSE | BG47: FALSE | BH47: FALSE | BI47: FALSE | BJ47: FALSE | BK47: FALSE | BL47: FALSE | BM47: FALSE | BN47: FALSE | BO47: FALSE | BP47: FALSE | BQ47: FALSE
C49: Debt IRR | E49: % s.a. | F49: =F144 -> 0.0444079026
C50: Debt Amount from DSCR | E50: Sol | F50: =NPV(F49,I47:BQ47) -> 1351367.487
C52: Debt to Capital from DSCR | E52: % | F52: =F50/F30 -> 1.206578113
C54: Target Maximum Debt | E54: % | F54: =Inputs!G52 -> 0.7
C55: Target Maximum Debt | E55: Sol | F55: =F54*F30 -> 784000
C57: PV of CFADS in Base Currency | E57: Sol | F57: =NPV(F49,I46:BQ46) -> 1891914.481
C58: Max DSCR in Base Currency | E58: Sol | F58: =F57/F55 -> 2.413156226
C60: CFADS over Tenure | E60: Sol
C61: Target Debt Service | E61: Sol | F61: =F58 -> 2.413156226 | I61: =IF(I45,I46/$F$61) -> FALSE | J61: =IF(J45,J46/$F$61) -> 17305.64544 | K61: 32521.72368 | L61: 18863.15353 | M61: 35448.67882 | N61: 20560.83734 | O61: 38639.05991 | P61: 22411.3127 | Q61: 42116.5753 | R61: 24428.33085 | S61: 45907.06708 | T61: 26626.88062 | U61: 50038.70312 | V61: 29023.29988 | W61: 54542.1864 | X61: 31635.39687 | Y61: 59450.98317 | Z61: 34482.58259 | AA61: 64801.57166 | AB61: 37586.01502 | AC61: 70633.71311 | AD61: 40968.75637 | AE61: 76990.74728 | AF61: 44655.94444 | AG61: 83919.91454 | AH61: 48674.97944 | AI61: 91472.70685 | AJ61: 53055.72759 | AK61: 99705.25047 | AL61: 57830.74308 | AM61: 108678.723 | AN61: 63035.50996 | AO61: 118459.8081 | AP61: 68708.70585 | AQ61: 129121.1908 | AR61: FALSE | AS61: FALSE | AT61: FALSE | AU61: FALSE | AV61: FALSE | AW61: FALSE | AX61: FALSE | AY61: FALSE | AZ61: FALSE | BA61: FALSE | BB61: FALSE | BC61: FALSE | BD61: FALSE | BE61: FALSE | BF61: FALSE | BG61: FALSE | BH61: FALSE | BI61: FALSE | BJ61: FALSE | BK61: FALSE | BL61: FALSE | BM61: FALSE | BN61: FALSE | BO61: FALSE | BP61: FALSE | BQ61: FALSE
C63: Target Aggregate Debt Service Applied | E63: Sol | F63: =IF(F61>F47,TRUE,FALSE) -> TRUE | I63: =IF($F$63,I61,I47) -> FALSE | J63: =IF($F$63,J61,J47) -> 17305.64544 | K63: 32521.72368 | L63: 18863.15353 | M63: 35448.67882 | N63: 20560.83734 | O63: 38639.05991 | P63: 22411.3127 | Q63: 42116.5753 | R63: 24428.33085 | S63: 45907.06708 | T63: 26626.88062 | U63: 50038.70312 | V63: 29023.29988 | W63: 54542.1864 | X63: 31635.39687 | Y63: 59450.98317 | Z63: 34482.58259 | AA63: 64801.57166 | AB63: 37586.01502 | AC63: 70633.71311 | AD63: 40968.75637 | AE63: 76990.74728 | AF63: 44655.94444 | AG63: 83919.91454 | AH63: 48674.97944 | AI63: 91472.70685 | AJ63: 53055.72759 | AK63: 99705.25047 | AL63: 57830.74308 | AM63: 108678.723 | AN63: 63035.50996 | AO63: 118459.8081 | AP63: 68708.70585 | AQ63: 129121.1908 | AR63: FALSE | AS63: FALSE | AT63: FALSE | AU63: FALSE | AV63: FALSE | AW63: FALSE | AX63: FALSE | AY63: FALSE | AZ63: FALSE | BA63: FALSE | BB63: FALSE | BC63: FALSE | BD63: FALSE | BE63: FALSE | BF63: FALSE | BG63: FALSE | BH63: FALSE | BI63: FALSE | BJ63: FALSE | BK63: FALSE | BL63: FALSE | BM63: FALSE | BN63: FALSE | BO63: FALSE | BP63: FALSE | BQ63: FALSE
C64: Final Debt Amount | E64: Sol | F64: =F49 -> 0.0444079026
C65: Total Aggregate Debt from PV of DS | E65: Sol | F65: =NPV(F64,I63:BQ63) -> 784000
B67: Part 2: SOL Debt - Shorter Tenure
C68: Debt Percent | E68: % | F68: =Inputs!G54 -> 0.6
C69: Debt Amount | E69: Sol | F69: =F68*F65 -> 470400
C71: LLCR or Target DSCR for Short-tenure
D72: Tenure of Short-term Issue | E72: Year | F72: =Inputs!G55 -> 15 | G72: =I4+F72 -> 2037 | I72: =AND(I6,I4<=$G$72) -> FALSE | J72: =AND(J6,J4<=$G$72) -> TRUE | K72: TRUE | L72: TRUE | M72: TRUE | N72: TRUE | O72: TRUE | P72: TRUE | Q72: TRUE | R72: TRUE | S72: TRUE | T72: TRUE | U72: TRUE | V72: TRUE | W72: TRUE | X72: TRUE | Y72: TRUE | Z72: TRUE | AA72: TRUE | AB72: TRUE | AC72: TRUE | AD72: TRUE | AE72: TRUE | AF72: TRUE | AG72: TRUE | AH72: TRUE | AI72: TRUE | AJ72: TRUE | AK72: TRUE | AL72: TRUE | AM72: TRUE | AN72: FALSE | AO72: FALSE | AP72: FALSE | AQ72: FALSE | AR72: FALSE | AS72: FALSE | AT72: FALSE | AU72: FALSE | AV72: FALSE | AW72: FALSE | AX72: FALSE | AY72: FALSE | AZ72: FALSE | BA72: FALSE | BB72: FALSE | BC72: FALSE | BD72: FALSE | BE72: FALSE | BF72: FALSE | BG72: FALSE | BH72: FALSE | BI72: FALSE | BJ72: FALSE | BK72: FALSE | BL72: FALSE | BM72: FALSE | BN72: FALSE | BO72: FALSE | BP72: FALSE | BQ72: FALSE
D73: CFADS over Tenure | E73: Sol | I73: =IF(I72,I46) -> FALSE | J73: =IF(J72,J46) -> 41761.22604 | K73: 78480 | L73: 45519.73638 | M73: 85543.2 | N73: 49616.51265 | O73: 93242.088 | P73: 54081.99879 | Q73: 101633.8759 | R73: 58949.37868 | S73: 110780.9248 | T73: 64254.82276 | U73: 120751.208 | V73: 70037.75681 | W73: 131618.8167 | X73: 76341.15493 | Y73: 143464.5102 | Z73: 83211.85887 | AA73: 156376.3161 | AB73: 90700.92617 | AC73: 170450.1846 | AD73: 98864.00952 | AE73: 185790.7012 | AF73: 107761.7704 | AG73: 202511.8643 | AH73: 117460.3297 | AI73: 220737.9321 | AJ73: 128031.7594 | AK73: 240604.346 | AL73: 139554.6177 | AM73: 262258.7371 | AN73: FALSE | AO73: FALSE | AP73: FALSE | AQ73: FALSE | AR73: FALSE | AS73: FALSE | AT73: FALSE | AU73: FALSE | AV73: FALSE | AW73: FALSE | AX73: FALSE | AY73: FALSE | AZ73: FALSE | BA73: FALSE | BB73: FALSE | BC73: FALSE | BD73: FALSE | BE73: FALSE | BF73: FALSE | BG73: FALSE | BH73: FALSE | BI73: FALSE | BJ73: FALSE | BK73: FALSE | BL73: FALSE | BM73: FALSE | BN73: FALSE | BO73: FALSE | BP73: FALSE | BQ73: FALSE
D74: Interest Rate for Issue in Base Currency | E74: % p.p | F74: =Inputs!G56/2 -> 0.035
D75: PV of CFADS | E75: Sol | F75: =NPV(F74,I73:BQ73) -> 1929989.45
D76: Debt Amount | E76: Sol | F76: =F69 -> 470400
D77: LLCR or Target DSCR | E77: x | F77: =IFERROR(F75/F76,FALSE) -> 4.102868729
D79: Debt Service for Issue | E79: Sol | F79: =F77 -> 4.102868729 | G79: =NPV(F74,I79:BQ79) -> 470400 | I79: =IF(AND(I72,$F$79),I73/$F$79) -> FALSE | J79: =IF(AND(J72,$F$79),J73/$F$79) -> 10178.54306 | K79: 19128.07969 | L79: 11094.61194 | M79: 20849.60686 | N79: 12093.12701 | O79: 22726.07148 | P79: 13181.50844 | Q79: 24771.41791 | R79: 14367.8442 | S79: 27000.84552 | T79: 15660.95018 | U79: 29430.92162 | V79: 17070.4357 | W79: 32079.70457 | X79: 18606.77491 | Y79: 34966.87798 | Z79: 20281.38465 | AA79: 38113.897 | AB79: 22106.70927 | AC79: 41544.14773 | AD79: 24096.31311 | AE79: 45283.12102 | AF79: 26264.98129 | AG79: 49358.60191 | AH79: 28628.8296 | AI79: 53800.87609 | AJ79: 31205.42427 | AK79: 58642.95493 | AL79: 34013.91245 | AM79: 63920.82088 | AN79: FALSE | AO79: FALSE | AP79: FALSE | AQ79: FALSE | AR79: FALSE | AS79: FALSE | AT79: FALSE | AU79: FALSE | AV79: FALSE | AW79: FALSE | AX79: FALSE | AY79: FALSE | AZ79: FALSE | BA79: FALSE | BB79: FALSE | BC79: FALSE | BD79: FALSE | BE79: FALSE | BF79: FALSE | BG79: FALSE | BH79: FALSE | BI79: FALSE | BJ79: FALSE | BK79: FALSE | BL79: FALSE | BM79: FALSE | BN79: FALSE | BO79: FALSE | BP79: FALSE | BQ79: FALSE
D81: Opening Balance | E81: Sol | I81: =H84 -> 0 | J81: =I84 -> 470400 | K81: 476685.4569 | L81: 474241.3682 | M81: 479745.2042 | N81: 475686.6795 | O81: 480242.5862 | P81: 474325.0053 | Q81: 477744.872 | R81: 469694.5246 | S81: 471765.9888 | T81: 461276.9529 | U81: 461760.696 | V81: 448491.3988 | W81: 447118.162 | X81: 430687.5932 | Y81: 427154.884 | Z81: 407138.427 | AA81: 401106.8873 | AB81: 377031.7313 | AC81: 368121.1326 | AD81: 339461.2246 | AE81: 327246.0543 | AF81: 293416.5452 | AG81: 277421.143 | AH81: 237772.2811 | AI81: 217465.4813 | AJ81: 171275.8971 | AK81: 146065.1292 | AL81: 92534.45379 | AM81: 61759.24722 | AN81: 1.273292582e-09 | AO81: 1.273292582e-09 | AP81: 1.273292582e-09 | AQ81: 1.273292582e-09 | AR81: 1.273292582e-09 | AS81: 1.273292582e-09 | AT81: 1.273292582e-09 | AU81: 1.273292582e-09 | AV81: 1.273292582e-09 | AW81: 1.273292582e-09 | AX81: 1.273292582e-09 | AY81: 1.273292582e-09 | AZ81: 1.273292582e-09 | BA81: 1.273292582e-09 | BB81: 1.273292582e-09 | BC81: 1.273292582e-09 | BD81: 1.273292582e-09 | BE81: 1.273292582e-09 | BF81: 1.273292582e-09 | BG81: 1.273292582e-09 | BH81: 1.273292582e-09 | BI81: 1.273292582e-09 | BJ81: 1.273292582e-09 | BK81: 1.273292582e-09 | BL81: 1.273292582e-09 | BM81: 1.273292582e-09 | BN81: 1.273292582e-09 | BO81: 1.273292582e-09 | BP81: 1.273292582e-09 | BQ81: 1.273292582e-09
D82: Add: Draw | E82: Sol | F82: =F76 -> 470400 | I82: =$F$82*I5 -> 470400 | J82: =$F$82*J5 -> 0 | K82: 0 | L82: 0 | M82: 0 | N82: 0 | O82: 0 | P82: 0 | Q82: 0 | R82: 0 | S82: 0 | T82: 0 | U82: 0 | V82: 0 | W82: 0 | X82: 0 | Y82: 0 | Z82: 0 | AA82: 0 | AB82: 0 | AC82: 0 | AD82: 0 | AE82: 0 | AF82: 0 | AG82: 0 | AH82: 0 | AI82: 0 | AJ82: 0 | AK82: 0 | AL82: 0 | AM82: 0 | AN82: 0 | AO82: 0 | AP82: 0 | AQ82: 0 | AR82: 0 | AS82: 0 | AT82: 0 | AU82: 0 | AV82: 0 | AW82: 0 | AX82: 0 | AY82: 0 | AZ82: 0 | BA82: 0 | BB82: 0 | BC82: 0 | BD82: 0 | BE82: 0 | BF82: 0 | BG82: 0 | BH82: 0 | BI82: 0 | BJ82: 0 | BK82: 0 | BL82: 0 | BM82: 0 | BN82: 0 | BO82: 0 | BP82: 0 | BQ82: 0
D83: Less: Repayment (DS - Interest) | E83: Sol | F83: =SUM(I83:BQ83) -> 470400 | I83: =(I79-I85)*I72 -> 0 | J83: =(J79-J85)*J72 -> -6285.456938 | K83: 2444.088697 | L83: -5503.83595 | M83: 4058.524715 | N83: -4555.906769 | O83: 5917.58096 | P83: -3419.866742 | Q83: 8050.347391 | R83: -2071.464159 | S83: 10489.03592 | T83: -483.743169 | U83: 13269.29726 | V83: 1373.23674 | W83: 16430.5689 | X83: 3532.709151 | Y83: 20016.45704 | Z83: 6031.539709 | AA83: 24075.15594 | AB83: 8910.598676 | AC83: 28659.90808 | AD83: 12215.17025 | AE83: 33829.50912 | AF83: 15995.4022 | AG83: 39648.86191 | AH83: 20306.79976 | AI83: 46189.58424 | AJ83: 25210.76787 | AK83: 53530.67541 | AL83: 30775.20657 | AM83: 61759.24722 | AN83: 0 | AO83: 0 | AP83: 0 | AQ83: 0 | AR83: 0 | AS83: 0 | AT83: 0 | AU83: 0 | AV83: 0 | AW83: 0 | AX83: 0 | AY83: 0 | AZ83: 0 | BA83: 0 | BB83: 0 | BC83: 0 | BD83: 0 | BE83: 0 | BF83: 0 | BG83: 0 | BH83: 0 | BI83: 0 | BJ83: 0 | BK83: 0 | BL83: 0 | BM83: 0 | BN83: 0 | BO83: 0 | BP83: 0 | BQ83: 0
D84: Closing Balance | E84: Sol | I84: =I81+I82-I83 -> 470400 | J84: =J81+J82-J83 -> 476685.4569 | K84: 474241.3682 | L84: 479745.2042 | M84: 475686.6795 | N84: 480242.5862 | O84: 474325.0053 | P84: 477744.872 | Q84: 469694.5246 | R84: 471765.9888 | S84: 461276.9529 | T84: 461760.696 | U84: 448491.3988 | V84: 447118.162 | W84: 430687.5932 | X84: 427154.884 | Y84: 407138.427 | Z84: 401106.8873 | AA84: 377031.7313 | AB84: 368121.1326 | AC84: 339461.2246 | AD84: 327246.0543 | AE84: 293416.5452 | AF84: 277421.143 | AG84: 237772.2811 | AH84: 217465.4813 | AI84: 171275.8971 | AJ84: 146065.1292 | AK84: 92534.45379 | AL84: 61759.24722 | AM84: 1.273292582e-09 | AN84: 1.273292582e-09 | AO84: 1.273292582e-09 | AP84: 1.273292582e-09 | AQ84: 1.273292582e-09 | AR84: 1.273292582e-09 | AS84: 1.273292582e-09 | AT84: 1.273292582e-09 | AU84: 1.273292582e-09 | AV84: 1.273292582e-09 | AW84: 1.273292582e-09 | AX84: 1.273292582e-09 | AY84: 1.273292582e-09 | AZ84: 1.273292582e-09 | BA84: 1.273292582e-09 | BB84: 1.273292582e-09 | BC84: 1.273292582e-09 | BD84: 1.273292582e-09 | BE84: 1.273292582e-09 | BF84: 1.273292582e-09 | BG84: 1.273292582e-09 | BH84: 1.273292582e-09 | BI84: 1.273292582e-09 | BJ84: 1.273292582e-09 | BK84: 1.273292582e-09 | BL84: 1.273292582e-09 | BM84: 1.273292582e-09 | BN84: 1.273292582e-09 | BO84: 1.273292582e-09 | BP84: 1.273292582e-09 | BQ84: 1.273292582e-09
D85: Interest Expense | E85: % | F85: =Inputs!G56/2 -> 0.035 | I85: =$F$85*I81 -> 0 | J85: =$F$85*J81 -> 16464 | K85: 16683.99099 | L85: 16598.44789 | M85: 16791.08215 | N85: 16649.03378 | O85: 16808.49052 | P85: 16601.37519 | Q85: 16721.07052 | R85: 16439.30836 | S85: 16511.80961 | T85: 16144.69335 | U85: 16161.62436 | V85: 15697.19896 | W85: 15649.13567 | X85: 15074.06576 | Y85: 14950.42094 | Z85: 14249.84494 | AA85: 14038.74105 | AB85: 13196.1106 | AC85: 12884.23964 | AD85: 11881.14286 | AE85: 11453.6119 | AF85: 10269.57908 | AG85: 9709.740004 | AH85: 8322.029838 | AI85: 7611.291846 | AJ85: 5994.656397 | AK85: 5112.279522 | AL85: 3238.705883 | AM85: 2161.573653 | AN85: 4.456524039e-11 | AO85: 4.456524039e-11 | AP85: 4.456524039e-11 | AQ85: 4.456524039e-11 | AR85: 4.456524039e-11 | AS85: 4.456524039e-11 | AT85: 4.456524039e-11 | AU85: 4.456524039e-11 | AV85: 4.456524039e-11 | AW85: 4.456524039e-11 | AX85: 4.456524039e-11 | AY85: 4.456524039e-11 | AZ85: 4.456524039e-11 | BA85: 4.456524039e-11 | BB85: 4.456524039e-11 | BC85: 4.456524039e-11 | BD85: 4.456524039e-11 | BE85: 4.456524039e-11 | BF85: 4.456524039e-11 | BG85: 4.456524039e-11 | BH85: 4.456524039e-11 | BI85: 4.456524039e-11 | BJ85: 4.456524039e-11 | BK85: 4.456524039e-11 | BL85: 4.456524039e-11 | BM85: 4.456524039e-11 | BN85: 4.456524039e-11 | BO85: 4.456524039e-11 | BP85: 4.456524039e-11 | BQ85: 4.456524039e-11
D87: Check | E87: Lookup | F87: =LOOKUP(G72,4:4,84:84) -> 1.273292582e-09
B89: Step 3: USD Debt - Alternate Currency - Longer Tenure
C90: USD/SOL Exchange Rate | E90: USD/Sol | I90: =1/I7 -> 0.25 | J90: =1/J7 -> 0.2430218777 | K90: =1/K7 -> 0.2362385321 | L90: =1/L7 -> 0.2296445266 | M90: =1/M7 -> 0.2232345762 | N90: =1/N7 -> 0.2170035435 | O90: =1/O7 -> 0.2109464344 | P90: =1/P7 -> 0.2050583943 | Q90: =1/Q7 -> 0.1993347041 | R90: =1/R7 -> 0.1937707763 | S90: =1/S7 -> 0.1883621516 | T90: =1/T7 -> 0.183104495 | U90: =1/U7 -> 0.1779935928 | V90: =1/V7 -> 0.1730253485 | W90: =1/W7 -> 0.1681957803 | X90: =1/X7 -> 0.1635010174 | Y90: =1/Y7 -> 0.158937297 | Z90: =1/Z7 -> 0.1545009614 | AA90: =1/AA7 -> 0.150188455 | AB90: =1/AB7 -> 0.1459963213 | AC90: =1/AC7 -> 0.1419212005 | AD90: =1/AD7 -> 0.1379598266 | AE90: =1/AE7 -> 0.1341090244 | AF90: =1/AF7 -> 0.1303657077 | AG90: =1/AG7 -> 0.1267268762 | AH90: =1/AH7 -> 0.1231896137 | AI90: =1/AI7 -> 0.1197510849 | AJ90: =1/AJ7 -> 0.116408534 | AK90: =1/AK7 -> 0.1131592821 | AL90: =1/AL7 -> 0.1100007248 | AM90: =1/AM7 -> 0.1069303307 | AN90: =1/AN7 -> 0.103945639 | AO90: =1/AO7 -> 0.1010442575 | AP90: =1/AP7 -> 0.09822386074 | AQ90: =1/AQ7 -> 0.09548218827 | AR90: =1/AR7 -> 0.09281704271 | AS90: =1/AS7 -> 0.090226288 | AT90: =1/AT7 -> 0.0877078477 | AU90: =1/AU7 -> 0.08525970334 | AV90: =1/AV7 -> 0.08287989278 | AW90: =1/AW7 -> 0.08056650866 | AX90: =1/AX7 -> 0.07831769685 | AY90: =1/AY7 -> 0.07613165497 | AZ90: =1/AZ7 -> 0.07400663097 | BA90: =1/BA7 -> 0.07194092167 | BB90: =1/BB7 -> 0.06993287147 | BC90: =1/BC7 -> 0.06798087094 | BD90: =1/BD7 -> 0.06608335561 | BE90: =1/BE7 -> 0.06423880465 | BF90: =1/BF7 -> 0.0624457397 | BG90: =1/BG7 -> 0.06070272366 | BH90: =1/BH7 -> 0.05900835953 | BI90: =1/BI7 -> 0.05736128933 | BJ90: =1/BJ7 -> 0.05576019295 | BK90: =1/BK7 -> 0.05420378716 | BL90: =1/BL7 -> 0.05269082453 | BM90: =1/BM7 -> 0.05122009246 | BN90: =1/BN7 -> 0.04979041217 | BO90: =1/BO7 -> 0.04840063783 | BP90: =1/BP7 -> 0.04704965554 | BQ90: =1/BQ7 -> 0.04573638253
C91: Percent Change in Exchange Rate | E91: % | J91: =J90/I90-1 -> -0.02791248931 | K91: =K90/J90-1 -> -0.02791248931 | L91: -0.02791248931 | M91: -0.02791248931 | N91: -0.02791248931 | O91: -0.02791248931 | P91: -0.02791248931 | Q91: -0.02791248931 | R91: -0.02791248931 | S91: -0.02791248931 | T91: -0.02791248931 | U91: -0.02791248931 | V91: -0.02791248931 | W91: -0.02791248931 | X91: -0.02791248931 | Y91: -0.02791248931 | Z91: -0.02791248931 | AA91: -0.02791248931 | AB91: -0.02791248931 | AC91: -0.02791248931 | AD91: -0.02791248931 | AE91: -0.02791248931 | AF91: -0.02791248931 | AG91: -0.02791248931 | AH91: -0.02791248931 | AI91: -0.02791248931 | AJ91: -0.02791248931 | AK91: -0.02791248931 | AL91: -0.02791248931 | AM91: -0.02791248931 | AN91: -0.02791248931 | AO91: -0.02791248931 | AP91: -0.02791248931 | AQ91: -0.02791248931 | AR91: -0.02791248931 | AS91: -0.02791248931 | AT91: -0.02791248931 | AU91: -0.02791248931 | AV91: -0.02791248931 | AW91: -0.02791248931 | AX91: -0.02791248931 | AY91: -0.02791248931 | AZ91: -0.02791248931 | BA91: -0.02791248931 | BB91: -0.02791248931 | BC91: -0.02791248931 | BD91: -0.02791248931 | BE91: -0.02791248931 | BF91: -0.02791248931 | BG91: -0.02791248931 | BH91: -0.02791248931 | BI91: -0.02791248931 | BJ91: -0.02791248931 | BK91: -0.02791248931 | BL91: -0.02791248931 | BM91: -0.02791248931 | BN91: -0.02791248931 | BO91: -0.02791248931 | BP91: -0.02791248931 | BQ91: -0.02791248931
C93: SOL/USD Exchange Rate | E93: Sol/USD | I93: =I7 -> 4 | J93: =J7 -> 4.11485587 | K93: =K7 -> 4.233009709 | L93: =L7 -> 4.354556212 | M93: =M7 -> 4.479592799 | N93: =N7 -> 4.608219681 | O93: =O7 -> 4.740539952 | P93: =P7 -> 4.876659663 | Q93: =Q7 -> 5.01668791 | R93: =R7 -> 5.160736924 | S93: =S7 -> 5.308922157 | T93: =T7 -> 5.461362376 | U93: =U7 -> 5.618179759 | V93: =V7 -> 5.779499991 | W93: =W7 -> 5.945452366 | X93: =X7 -> 6.116169893 | Y93: =Y7 -> 6.291789397 | Z93: =Z7 -> 6.472451634 | AA93: =AA7 -> 6.658301401 | AB93: =AB7 -> 6.849487652 | AC93: =AC7 -> 7.046163618 | AD93: =AD7 -> 7.248486932 | AE93: =AE7 -> 7.456619752 | AF93: =AF7 -> 7.67072889 | AG93: =AG7 -> 7.890985951 | AH93: =AH7 -> 8.117567466 | AI93: =AI7 -> 8.350655035 | AJ93: =AJ7 -> 8.590435474 | AK93: =AK7 -> 8.83710096 | AL93: =AL7 -> 9.09084919 | AM93: =AM7 -> 9.35188354 | AN93: =AN7 -> 9.620413221 | AO93: =AO7 -> 9.896653455 | AP93: =AP7 -> 10.18082564 | AQ93: =AQ7 -> 10.47315754 | AR93: =AR7 -> 10.77388345 | AS93: =AS7 -> 11.08324439 | AT93: =AT7 -> 11.40148831 | AU93: =AU7 -> 11.72887027 | AV93: =AV7 -> 12.06565267 | AW93: =AW7 -> 12.41210543 | AX93: =AX7 -> 12.76850623 | AY93: =AY7 -> 13.1351407 | AZ93: =AZ7 -> 13.51230271 | BA93: =BA7 -> 13.90029453 | BB93: =BB7 -> 14.29942714 | BC93: =BC7 -> 14.71002042 | BD93: =BD7 -> 15.13240348 | BE93: =BE7 -> 15.56691482 | BF93: =BF7 -> 16.01390271 | BG93: =BG7 -> 16.47372539 | BH93: =BH7 -> 16.94675141 | BI93: =BI7 -> 17.43335988 | BJ93: =BJ7 -> 17.93394081 | BK93: =BK7 -> 18.44889541 | BL93: =BL7 -> 18.97863639 | BM93: =BM7 -> 19.52358834 | BN93: =BN7 -> 20.08418803 | BO93: =BO7 -> 20.66088475 | BP93: =BP7 -> 21.25414073 | BQ93: =BQ7 -> 21.86443144
C94: Percent Change in Exchange Rate | E94: % | J94: =J93/I93-1 -> 0.02871396762 | K94: =K93/J93-1 -> 0.02871396762 | L94: 0.02871396762 | M94: 0.02871396762 | N94: 0.02871396762 | O94: 0.02871396762 | P94: 0.02871396762 | Q94: 0.02871396762 | R94: 0.02871396762 | S94: 0.02871396762 | T94: 0.02871396762 | U94: 0.02871396762 | V94: 0.02871396762 | W94: 0.02871396762 | X94: 0.02871396762 | Y94: 0.02871396762 | Z94: 0.02871396762 | AA94: 0.02871396762 | AB94: 0.02871396762 | AC94: 0.02871396762 | AD94: 0.02871396762 | AE94: 0.02871396762 | AF94: 0.02871396762 | AG94: 0.02871396762 | AH94: 0.02871396762 | AI94: 0.02871396762 | AJ94: 0.02871396762 | AK94: 0.02871396762 | AL94: 0.02871396762 | AM94: 0.02871396762 | AN94: 0.02871396762 | AO94: 0.02871396762 | AP94: 0.02871396762 | AQ94: 0.02871396762 | AR94: 0.02871396762 | AS94: 0.02871396762 | AT94: 0.02871396762 | AU94: 0.02871396762 | AV94: 0.02871396762 | AW94: 0.02871396762 | AX94: 0.02871396762 | AY94: 0.02871396762 | AZ94: 0.02871396762 | BA94: 0.02871396762 | BB94: 0.02871396762 | BC94: 0.02871396762 | BD94: 0.02871396762 | BE94: 0.02871396762 | BF94: 0.02871396762 | BG94: 0.02871396762 | BH94: 0.02871396762 | BI94: 0.02871396762 | BJ94: 0.02871396762 | BK94: 0.02871396762 | BL94: 0.02871396762 | BM94: 0.02871396762 | BN94: 0.02871396762 | BO94: 0.02871396762 | BP94: 0.02871396762 | BQ94: 0.02871396762
C96: Interest Rate in USD | E96: % | F96: =Inputs!G60/2 -> 0.025 | I96: =$F$96 -> 0.025 | J96: =$F$96 -> 0.025 | K96: 0.025 | L96: 0.025 | M96: 0.025 | N96: 0.025 | O96: 0.025 | P96: 0.025 | Q96: 0.025 | R96: 0.025 | S96: 0.025 | T96: 0.025 | U96: 0.025 | V96: 0.025 | W96: 0.025 | X96: 0.025 | Y96: 0.025 | Z96: 0.025 | AA96: 0.025 | AB96: 0.025 | AC96: 0.025 | AD96: 0.025 | AE96: 0.025 | AF96: 0.025 | AG96: 0.025 | AH96: 0.025 | AI96: 0.025 | AJ96: 0.025 | AK96: 0.025 | AL96: 0.025 | AM96: 0.025 | AN96: 0.025 | AO96: 0.025 | AP96: 0.025 | AQ96: 0.025 | AR96: 0.025 | AS96: 0.025 | AT96: 0.025 | AU96: 0.025 | AV96: 0.025 | AW96: 0.025 | AX96: 0.025 | AY96: 0.025 | AZ96: 0.025 | BA96: 0.025 | BB96: 0.025 | BC96: 0.025 | BD96: 0.025 | BE96: 0.025 | BF96: 0.025 | BG96: 0.025 | BH96: 0.025 | BI96: 0.025 | BJ96: 0.025 | BK96: 0.025 | BL96: 0.025 | BM96: 0.025 | BN96: 0.025 | BO96: 0.025 | BP96: 0.025 | BQ96: 0.025
C97: Yield Changed to SOL | E97: % | F97: (1+US Int) * (1+Chg)-1 | I97: =(1+I96)*(1+I94)-1 -> 0.025 | J97: =(1+J96)*(1+J94)-1 -> 0.05443181681 | K97: 0.05443181681 | L97: 0.05443181681 | M97: 0.05443181681 | N97: 0.05443181681 | O97: 0.05443181681 | P97: 0.05443181681 | Q97: 0.05443181681 | R97: 0.05443181681 | S97: 0.05443181681 | T97: 0.05443181681 | U97: 0.05443181681 | V97: 0.05443181681 | W97: 0.05443181681 | X97: 0.05443181681 | Y97: 0.05443181681 | Z97: 0.05443181681 | AA97: 0.05443181681 | AB97: 0.05443181681 | AC97: 0.05443181681 | AD97: 0.05443181681 | AE97: 0.05443181681 | AF97: 0.05443181681 | AG97: 0.05443181681 | AH97: 0.05443181681 | AI97: 0.05443181681 | AJ97: 0.05443181681 | AK97: 0.05443181681 | AL97: 0.05443181681 | AM97: 0.05443181681 | AN97: 0.05443181681 | AO97: 0.05443181681 | AP97: 0.05443181681 | AQ97: 0.05443181681 | AR97: 0.05443181681 | AS97: 0.05443181681 | AT97: 0.05443181681 | AU97: 0.05443181681 | AV97: 0.05443181681 | AW97: 0.05443181681 | AX97: 0.05443181681 | AY97: 0.05443181681 | AZ97: 0.05443181681 | BA97: 0.05443181681 | BB97: 0.05443181681 | BC97: 0.05443181681 | BD97: 0.05443181681 | BE97: 0.05443181681 | BF97: 0.05443181681 | BG97: 0.05443181681 | BH97: 0.05443181681 | BI97: 0.05443181681 | BJ97: 0.05443181681 | BK97: 0.05443181681 | BL97: 0.05443181681 | BM97: 0.05443181681 | BN97: 0.05443181681 | BO97: 0.05443181681 | BP97: 0.05443181681 | BQ97: 0.05443181681
C99: USD Balance
D100: Aggregate Debt Service in Base Currency | E100: Sol | F100: DS = CFAD/DSCR - other | I100: =I63 -> FALSE | J100: =J63 -> 17305.64544 | K100: =K63 -> 32521.72368 | L100: =L63 -> 18863.15353 | M100: =M63 -> 35448.67882 | N100: =N63 -> 20560.83734 | O100: =O63 -> 38639.05991 | P100: =P63 -> 22411.3127 | Q100: =Q63 -> 42116.5753 | R100: =R63 -> 24428.33085 | S100: =S63 -> 45907.06708 | T100: =T63 -> 26626.88062 | U100: =U63 -> 50038.70312 | V100: =V63 -> 29023.29988 | W100: =W63 -> 54542.1864 | X100: =X63 -> 31635.39687 | Y100: =Y63 -> 59450.98317 | Z100: =Z63 -> 34482.58259 | AA100: =AA63 -> 64801.57166 | AB100: =AB63 -> 37586.01502 | AC100: =AC63 -> 70633.71311 | AD100: =AD63 -> 40968.75637 | AE100: =AE63 -> 76990.74728 | AF100: =AF63 -> 44655.94444 | AG100: =AG63 -> 83919.91454 | AH100: =AH63 -> 48674.97944 | AI100: =AI63 -> 91472.70685 | AJ100: =AJ63 -> 53055.72759 | AK100: =AK63 -> 99705.25047 | AL100: =AL63 -> 57830.74308 | AM100: =AM63 -> 108678.723 | AN100: =AN63 -> 63035.50996 | AO100: =AO63 -> 118459.8081 | AP100: =AP63 -> 68708.70585 | AQ100: =AQ63 -> 129121.1908 | AR100: =AR63 -> FALSE | AS100: =AS63 -> FALSE | AT100: =AT63 -> FALSE | AU100: =AU63 -> FALSE | AV100: =AV63 -> FALSE | AW100: =AW63 -> FALSE | AX100: =AX63 -> FALSE | AY100: =AY63 -> FALSE | AZ100: =AZ63 -> FALSE | BA100: =BA63 -> FALSE | BB100: =BB63 -> FALSE | BC100: =BC63 -> FALSE | BD100: =BD63 -> FALSE | BE100: =BE63 -> FALSE | BF100: =BF63 -> FALSE | BG100: =BG63 -> FALSE | BH100: =BH63 -> FALSE | BI100: =BI63 -> FALSE | BJ100: =BJ63 -> FALSE | BK100: =BK63 -> FALSE | BL100: =BL63 -> FALSE | BM100: =BM63 -> FALSE | BN100: =BN63 -> FALSE | BO100: =BO63 -> FALSE | BP100: =BP63 -> FALSE | BQ100: =BQ63 -> FALSE
D101: Less: Shorter-tenure Currency | E101: Sol | I101: =I79 -> FALSE | J101: =J79 -> 10178.54306 | K101: =K79 -> 19128.07969 | L101: =L79 -> 11094.61194 | M101: =M79 -> 20849.60686 | N101: =N79 -> 12093.12701 | O101: =O79 -> 22726.07148 | P101: =P79 -> 13181.50844 | Q101: =Q79 -> 24771.41791 | R101: =R79 -> 14367.8442 | S101: =S79 -> 27000.84552 | T101: =T79 -> 15660.95018 | U101: =U79 -> 29430.92162 | V101: =V79 -> 17070.4357 | W101: =W79 -> 32079.70457 | X101: =X79 -> 18606.77491 | Y101: =Y79 -> 34966.87798 | Z101: =Z79 -> 20281.38465 | AA101: =AA79 -> 38113.897 | AB101: =AB79 -> 22106.70927 | AC101: =AC79 -> 41544.14773 | AD101: =AD79 -> 24096.31311 | AE101: =AE79 -> 45283.12102 | AF101: =AF79 -> 26264.98129 | AG101: =AG79 -> 49358.60191 | AH101: =AH79 -> 28628.8296 | AI101: =AI79 -> 53800.87609 | AJ101: =AJ79 -> 31205.42427 | AK101: =AK79 -> 58642.95493 | AL101: =AL79 -> 34013.91245 | AM101: =AM79 -> 63920.82088 | AN101: =AN79 -> FALSE | AO101: =AO79 -> FALSE | AP101: =AP79 -> FALSE | AQ101: =AQ79 -> FALSE | AR101: =AR79 -> FALSE | AS101: =AS79 -> FALSE | AT101: =AT79 -> FALSE | AU101: =AU79 -> FALSE | AV101: =AV79 -> FALSE | AW101: =AW79 -> FALSE | AX101: =AX79 -> FALSE | AY101: =AY79 -> FALSE | AZ101: =AZ79 -> FALSE | BA101: =BA79 -> FALSE | BB101: =BB79 -> FALSE | BC101: =BC79 -> FALSE | BD101: =BD79 -> FALSE | BE101: =BE79 -> FALSE | BF101: =BF79 -> FALSE | BG101: =BG79 -> FALSE | BH101: =BH79 -> FALSE | BI101: =BI79 -> FALSE | BJ101: =BJ79 -> FALSE | BK101: =BK79 -> FALSE | BL101: =BL79 -> FALSE | BM101: =BM79 -> FALSE | BN101: =BN79 -> FALSE | BO101: =BO79 -> FALSE | BP101: =BP79 -> FALSE | BQ101: =BQ79 -> FALSE
D102: Net Debt Service for Sculpting in Base Currency | E102: Sol | I102: =IF(I45,I100-I101) -> FALSE | J102: =IF(J45,J100-J101) -> 7127.102374 | K102: =IF(K45,K100-K101) -> 13393.64399 | L102: =IF(L45,L100-L101) -> 7768.541588 | M102: =IF(M45,M100-M101) -> 14599.07195 | N102: =IF(N45,N100-N101) -> 8467.710331 | O102: =IF(O45,O100-O101) -> 15912.98843 | P102: =IF(P45,P100-P101) -> 9229.80426 | Q102: =IF(Q45,Q100-Q101) -> 17345.15739 | R102: =IF(R45,R100-R101) -> 10060.48664 | S102: =IF(S45,S100-S101) -> 18906.22155 | T102: =IF(T45,T100-T101) -> 10965.93044 | U102: =IF(U45,U100-U101) -> 20607.78149 | V102: =IF(V45,V100-V101) -> 11952.86418 | W102: =IF(W45,W100-W101) -> 22462.48183 | X102: =IF(X45,X100-X101) -> 13028.62196 | Y102: =IF(Y45,Y100-Y101) -> 24484.10519 | Z102: =IF(Z45,Z100-Z101) -> 14201.19793 | AA102: =IF(AA45,AA100-AA101) -> 26687.67466 | AB102: =IF(AB45,AB100-AB101) -> 15479.30575 | AC102: =IF(AC45,AC100-AC101) -> 29089.56538 | AD102: =IF(AD45,AD100-AD101) -> 16872.44327 | AE102: =IF(AE45,AE100-AE101) -> 31707.62626 | AF102: =IF(AF45,AF100-AF101) -> 18390.96316 | AG102: =IF(AG45,AG100-AG101) -> 34561.31263 | AH102: =IF(AH45,AH100-AH101) -> 20046.14984 | AI102: =IF(AI45,AI100-AI101) -> 37671.83076 | AJ102: =IF(AJ45,AJ100-AJ101) -> 21850.30333 | AK102: =IF(AK45,AK100-AK101) -> 41062.29553 | AL102: =IF(AL45,AL100-AL101) -> 23816.83063 | AM102: =IF(AM45,AM100-AM101) -> 44757.90213 | AN102: =IF(AN45,AN100-AN101) -> 63035.50996 | AO102: =IF(AO45,AO100-AO101) -> 118459.8081 | AP102: =IF(AP45,AP100-AP101) -> 68708.70585 | AQ102: =IF(AQ45,AQ100-AQ101) -> 129121.1908 | AR102: =IF(AR45,AR100-AR101) -> FALSE | AS102: =IF(AS45,AS100-AS101) -> FALSE | AT102: =IF(AT45,AT100-AT101) -> FALSE | AU102: =IF(AU45,AU100-AU101) -> FALSE | AV102: =IF(AV45,AV100-AV101) -> FALSE | AW102: =IF(AW45,AW100-AW101) -> FALSE | AX102: =IF(AX45,AX100-AX101) -> FALSE | AY102: =IF(AY45,AY100-AY101) -> FALSE | AZ102: =IF(AZ45,AZ100-AZ101) -> FALSE | BA102: =IF(BA45,BA100-BA101) -> FALSE | BB102: =IF(BB45,BB100-BB101) -> FALSE | BC102: =IF(BC45,BC100-BC101) -> FALSE | BD102: =IF(BD45,BD100-BD101) -> FALSE | BE102: =IF(BE45,BE100-BE101) -> FALSE | BF102: =IF(BF45,BF100-BF101) -> FALSE | BG102: =IF(BG45,BG100-BG101) -> FALSE | BH102: =IF(BH45,BH100-BH101) -> FALSE | BI102: =IF(BI45,BI100-BI101) -> FALSE | BJ102: =IF(BJ45,BJ100-BJ101) -> FALSE | BK102: =IF(BK45,BK100-BK101) -> FALSE | BL102: =IF(BL45,BL100-BL101) -> FALSE | BM102: =IF(BM45,BM100-BM101) -> FALSE | BN102: =IF(BN45,BN100-BN101) -> FALSE | BO102: =IF(BO45,BO100-BO101) -> FALSE | BP102: =IF(BP45,BP100-BP101) -> FALSE | BQ102: =IF(BQ45,BQ100-BQ101) -> FALSE
D103: Conversion to Currency of the Issue | E103: USD | I103: =IF(I45,I102*I90) -> FALSE | J103: =IF(J45,J102*J90) -> 1732.041801 | K103: =IF(K45,K102*K90) -> 3164.094797 | L103: =IF(L45,L102*L90) -> 1784.003055 | M103: =IF(M45,M102*M90) -> 3259.017641 | N103: =IF(N45,N102*N90) -> 1837.523147 | O103: =IF(O45,O102*O90) -> 3356.78817 | P103: =IF(P45,P102*P90) -> 1892.648841 | Q103: =IF(Q45,Q102*Q90) -> 3457.491815 | R103: =IF(R45,R102*R90) -> 1949.428307 | S103: =IF(S45,S102*S90) -> 3561.21657 | T103: =IF(T45,T102*T90) -> 2007.911156 | U103: =IF(U45,U102*U90) -> 3668.053067 | V103: =IF(V45,V102*V90) -> 2068.148491 | W103: =IF(W45,W102*W90) -> 3778.094659 | X103: =IF(X45,X102*X90) -> 2130.192945 | Y103: =IF(Y45,Y102*Y90) -> 3891.437498 | Z103: =IF(Z45,Z102*Z90) -> 2194.098734 | AA103: =IF(AA45,AA102*AA90) -> 4008.180623 | AB103: =IF(AB45,AB102*AB90) -> 2259.921696 | AC103: =IF(AC45,AC102*AC90) -> 4128.426042 | AD103: =IF(AD45,AD102*AD90) -> 2327.719346 | AE103: =IF(AE45,AE102*AE90) -> 4252.278823 | AF103: =IF(AF45,AF102*AF90) -> 2397.550927 | AG103: =IF(AG45,AG102*AG90) -> 4379.847188 | AH103: =IF(AH45,AH102*AH90) -> 2469.477455 | AI103: =IF(AI45,AI102*AI90) -> 4511.242604 | AJ103: =IF(AJ45,AJ102*AJ90) -> 2543.561778 | AK103: =IF(AK45,AK102*AK90) -> 4646.579882 | AL103: =IF(AL45,AL102*AL90) -> 2619.868632 | AM103: =IF(AM45,AM102*AM90) -> 4785.977278 | AN103: =IF(AN45,AN102*AN90) -> 6552.266364 | AO103: =IF(AO45,AO102*AO90) -> 11969.68335 | AP103: =IF(AP45,AP102*AP90) -> 6748.834355 | AQ103: =IF(AQ45,AQ102*AQ90) -> 12328.77385 | AR103: =IF(AR45,AR102*AR90) -> FALSE | AS103: =IF(AS45,AS102*AS90) -> FALSE | AT103: =IF(AT45,AT102*AT90) -> FALSE | AU103: =IF(AU45,AU102*AU90) -> FALSE | AV103: =IF(AV45,AV102*AV90) -> FALSE | AW103: =IF(AW45,AW102*AW90) -> FALSE | AX103: =IF(AX45,AX102*AX90) -> FALSE | AY103: =IF(AY45,AY102*AY90) -> FALSE | AZ103: =IF(AZ45,AZ102*AZ90) -> FALSE | BA103: =IF(BA45,BA102*BA90) -> FALSE | BB103: =IF(BB45,BB102*BB90) -> FALSE | BC103: =IF(BC45,BC102*BC90) -> FALSE | BD103: =IF(BD45,BD102*BD90) -> FALSE | BE103: =IF(BE45,BE102*BE90) -> FALSE | BF103: =IF(BF45,BF102*BF90) -> FALSE | BG103: =IF(BG45,BG102*BG90) -> FALSE | BH103: =IF(BH45,BH102*BH90) -> FALSE | BI103: =IF(BI45,BI102*BI90) -> FALSE | BJ103: =IF(BJ45,BJ102*BJ90) -> FALSE | BK103: =IF(BK45,BK102*BK90) -> FALSE | BL103: =IF(BL45,BL102*BL90) -> FALSE | BM103: =IF(BM45,BM102*BM90) -> FALSE | BN103: =IF(BN45,BN102*BN90) -> FALSE | BO103: =IF(BO45,BO102*BO90) -> FALSE | BP103: =IF(BP45,BP102*BP90) -> FALSE | BQ103: =IF(BQ45,BQ102*BQ90) -> FALSE
D105: PV of Debt Service | E105: USD | F105: =NPV(G105,I103:BQ103) -> 78400 | G105: =F96 -> 0.025
D107: Opening Balance | E107: USD | I107: =H110 -> 0 | J107: =I110 -> 78400 | K107: 78627.9582 | L107: 77429.56236 | M107: 77581.29836 | N107: 76261.81318 | O107: 76330.83536 | P107: 74882.31807 | Q107: 74861.72719 | R107: 73275.77855 | S107: 73158.24471 | T107: 71425.98425 | U107: 71203.72271 | V107: 69315.76271 | W107: 68980.50828 | X107: 66926.92633 | Y107: 66469.90655 | Z107: 64240.21671 | AA107: 63652.12339 | AB107: 61235.24586 | AC107: 60506.20531 | AD107: 57890.4344 | AE107: 57009.97591 | AF107: 54182.94648 | AG107: 53139.96922 | AH107: 50088.62126 | AI107: 48871.35934 | AJ107: 45581.90072 | AK107: 44177.88646 | AL107: 40635.75374 | AM107: 39031.77895 | AN107: 35221.59615 | AO107: 29549.86969 | AP107: 18318.93308 | AQ107: 12028.07205 | AR107: 2.364686225e-10 | AS107: 2.42380338e-10 | AT107: 2.484398465e-10 | AU107: 2.546508426e-10 | AV107: 2.610171137e-10 | AW107: 2.675425415e-10 | AX107: 2.742311051e-10 | AY107: 2.810868827e-10 | AZ107: 2.881140548e-10 | BA107: 2.953169061e-10 | BB107: 3.026998288e-10 | BC107: 3.102673245e-10 | BD107: 3.180240076e-10 | BE107: 3.259746078e-10 | BF107: 3.34123973e-10 | BG107: 3.424770723e-10 | BH107: 3.510389992e-10 | BI107: 3.598149741e-10 | BJ107: 3.688103485e-10 | BK107: 3.780306072e-10 | BL107: 3.874813724e-10 | BM107: 3.971684067e-10 | BN107: 4.070976169e-10 | BO107: 4.172750573e-10 | BP107: 4.277069337e-10 | BQ107: 4.38399607e-10
D108: Add: Draws | E108: USD | F108: =F105 -> 78400 | I108: =$F$108*I5 -> 78400 | J108: =$F$108*J5 -> 0 | K108: =$F$108*K5 -> 0 | L108: =$F$108*L5 -> 0 | M108: =$F$108*M5 -> 0 | N108: =$F$108*N5 -> 0 | O108: =$F$108*O5 -> 0 | P108: =$F$108*P5 -> 0 | Q108: =$F$108*Q5 -> 0 | R108: =$F$108*R5 -> 0 | S108: =$F$108*S5 -> 0 | T108: =$F$108*T5 -> 0 | U108: =$F$108*U5 -> 0 | V108: =$F$108*V5 -> 0 | W108: =$F$108*W5 -> 0 | X108: =$F$108*X5 -> 0 | Y108: =$F$108*Y5 -> 0 | Z108: =$F$108*Z5 -> 0 | AA108: =$F$108*AA5 -> 0 | AB108: =$F$108*AB5 -> 0 | AC108: =$F$108*AC5 -> 0 | AD108: =$F$108*AD5 -> 0 | AE108: =$F$108*AE5 -> 0 | AF108: =$F$108*AF5 -> 0 | AG108: =$F$108*AG5 -> 0 | AH108: =$F$108*AH5 -> 0 | AI108: =$F$108*AI5 -> 0 | AJ108: =$F$108*AJ5 -> 0 | AK108: =$F$108*AK5 -> 0 | AL108: =$F$108*AL5 -> 0 | AM108: =$F$108*AM5 -> 0 | AN108: =$F$108*AN5 -> 0 | AO108: =$F$108*AO5 -> 0 | AP108: =$F$108*AP5 -> 0 | AQ108: =$F$108*AQ5 -> 0 | AR108: =$F$108*AR5 -> 0 | AS108: =$F$108*AS5 -> 0 | AT108: =$F$108*AT5 -> 0 | AU108: =$F$108*AU5 -> 0 | AV108: =$F$108*AV5 -> 0 | AW108: =$F$108*AW5 -> 0 | AX108: =$F$108*AX5 -> 0 | AY108: =$F$108*AY5 -> 0 | AZ108: =$F$108*AZ5 -> 0 | BA108: =$F$108*BA5 -> 0 | BB108: =$F$108*BB5 -> 0 | BC108: =$F$108*BC5 -> 0 | BD108: =$F$108*BD5 -> 0 | BE108: =$F$108*BE5 -> 0 | BF108: =$F$108*BF5 -> 0 | BG108: =$F$108*BG5 -> 0 | BH108: =$F$108*BH5 -> 0 | BI108: =$F$108*BI5 -> 0 | BJ108: =$F$108*BJ5 -> 0 | BK108: =$F$108*BK5 -> 0 | BL108: =$F$108*BL5 -> 0 | BM108: =$F$108*BM5 -> 0 | BN108: =$F$108*BN5 -> 0 | BO108: =$F$108*BO5 -> 0 | BP108: =$F$108*BP5 -> 0 | BQ108: =$F$108*BQ5 -> 0
D109: Less: Repayment | E109: USD | I109: =I103-I111 -> 0 | J109: =J103-J111 -> -227.9581987 | K109: =K103-K111 -> 1198.395842 | L109: -151.7360036 | M109: 1319.485182 | N109: -69.02218248 | O109: 1448.517286 | P109: 20.59088952 | Q109: 1585.948636 | R109: 117.5338429 | S109: 1732.260452 | T109: 222.2615495 | U109: 1887.959999 | V109: 335.2544228 | W109: 2053.581952 | X109: 457.0197869 | Y109: 2229.689835 | Z109: 588.0933158 | AA109: 2416.877539 | AB109: 729.0405492 | AC109: 2615.770909 | AD109: 880.4584865 | AE109: 2827.029426 | AF109: 1042.977265 | AG109: 3051.347958 | AH109: 1217.261923 | AI109: 3289.45862 | AJ109: 1404.01426 | AK109: 3542.13272 | AL109: 1603.974788 | AM109: 3810.182805 | AN109: 5671.72646 | AO109: 11230.93661 | AP109: 6290.861028 | AQ109: 12028.07205 | AR109: -5.911715562e-12 | AS109: -6.059508451e-12 | AT109: -6.210996162e-12 | AU109: -6.366271066e-12 | AV109: -6.525427843e-12 | AW109: -6.688563539e-12 | AX109: -6.855777627e-12 | AY109: -7.027172068e-12 | AZ109: -7.202851369e-12 | BA109: -7.382922654e-12 | BB109: -7.56749572e-12 | BC109: -7.756683113e-12 | BD109: -7.950600191e-12 | BE109: -8.149365196e-12 | BF109: -8.353099325e-12 | BG109: -8.561926809e-12 | BH109: -8.775974979e-12 | BI109: -8.995374353e-12 | BJ109: -9.220258712e-12 | BK109: -9.45076518e-12 | BL109: -9.687034309e-12 | BM109: -9.929210167e-12 | BN109: -1.017744042e-11 | BO109: -1.043187643e-11 | BP109: -1.069267334e-11 | BQ109: -1.095999018e-11
D110: Closing Balance | E110: USD | I110: =I107+I108-I109 -> 78400 | J110: =J107+J108-J109 -> 78627.9582 | K110: 77429.56236 | L110: 77581.29836 | M110: 76261.81318 | N110: 76330.83536 | O110: 74882.31807 | P110: 74861.72719 | Q110: 73275.77855 | R110: 73158.24471 | S110: 71425.98425 | T110: 71203.72271 | U110: 69315.76271 | V110: 68980.50828 | W110: 66926.92633 | X110: 66469.90655 | Y110: 64240.21671 | Z110: 63652.12339 | AA110: 61235.24586 | AB110: 60506.20531 | AC110: 57890.4344 | AD110: 57009.97591 | AE110: 54182.94648 | AF110: 53139.96922 | AG110: 50088.62126 | AH110: 48871.35934 | AI110: 45581.90072 | AJ110: 44177.88646 | AK110: 40635.75374 | AL110: 39031.77895 | AM110: 35221.59615 | AN110: 29549.86969 | AO110: 18318.93308 | AP110: 12028.07205 | AQ110: 2.364686225e-10 | AR110: 2.42380338e-10 | AS110: 2.484398465e-10 | AT110: 2.546508426e-10 | AU110: 2.610171137e-10 | AV110: 2.675425415e-10 | AW110: 2.742311051e-10 | AX110: 2.810868827e-10 | AY110: 2.881140548e-10 | AZ110: 2.953169061e-10 | BA110: 3.026998288e-10 | BB110: 3.102673245e-10 | BC110: 3.180240076e-10 | BD110: 3.259746078e-10 | BE110: 3.34123973e-10 | BF110: 3.424770723e-10 | BG110: 3.510389992e-10 | BH110: 3.598149741e-10 | BI110: 3.688103485e-10 | BJ110: 3.780306072e-10 | BK110: 3.874813724e-10 | BL110: 3.971684067e-10 | BM110: 4.070976169e-10 | BN110: 4.172750573e-10 | BO110: 4.277069337e-10 | BP110: 4.38399607e-10 | BQ110: 4.493595972e-10
D111: Interest Expense | E111: USD | F111: =F96 -> 0.025 | I111: =$F$111*I107 -> 0 | J111: =$F$111*J107 -> 1960 | K111: 1965.698955 | L111: 1935.739059 | M111: 1939.532459 | N111: 1906.545329 | O111: 1908.270884 | P111: 1872.057952 | Q111: 1871.54318 | R111: 1831.894464 | S111: 1828.956118 | T111: 1785.649606 | U111: 1780.093068 | V111: 1732.894068 | W111: 1724.512707 | X111: 1673.173158 | Y111: 1661.747664 | Z111: 1606.005418 | AA111: 1591.303085 | AB111: 1530.881146 | AC111: 1512.655133 | AD111: 1447.26086 | AE111: 1425.249398 | AF111: 1354.573662 | AG111: 1328.499231 | AH111: 1252.215532 | AI111: 1221.783983 | AJ111: 1139.547518 | AK111: 1104.447161 | AL111: 1015.893843 | AM111: 975.7944738 | AN111: 880.5399036 | AO111: 738.7467421 | AP111: 457.9733269 | AQ111: 300.7018012 | AR111: 5.911715562e-12 | AS111: 6.059508451e-12 | AT111: 6.210996162e-12 | AU111: 6.366271066e-12 | AV111: 6.525427843e-12 | AW111: 6.688563539e-12 | AX111: 6.855777627e-12 | AY111: 7.027172068e-12 | AZ111: 7.202851369e-12 | BA111: 7.382922654e-12 | BB111: 7.56749572e-12 | BC111: 7.756683113e-12 | BD111: 7.950600191e-12 | BE111: 8.149365196e-12 | BF111: 8.353099325e-12 | BG111: 8.561926809e-12 | BH111: 8.775974979e-12 | BI111: 8.995374353e-12 | BJ111: 9.220258712e-12 | BK111: 9.45076518e-12 | BL111: 9.687034309e-12 | BM111: 9.929210167e-12 | BN111: 1.017744042e-11 | BO111: 1.043187643e-11 | BP111: 1.069267334e-11 | BQ111: 1.095999018e-11
D113: Closing Balance Test | E113: Lookup | F113: =I4+F45/2 -> 2039 | G113: =ROUND(LOOKUP(F113,4:4,110:110),0)=0 -> TRUE
C115: SOL Balance
D116: Opening Balance | E116: Sol | I116: =H120 -> 0 | J116: =I120 -> 313600 | K116: 323542.7154 | L116: 327760.0892 | M116: 337832.1247 | N116: 341621.8691 | O116: 351749.2578 | P116: 354982.6205 | Q116: 365075.1652 | R116: 367601.7124 | S116: 377550.4548 | T116: 379194.9904 | U116: 388869.3322 | V116: 389428.415 | W116: 398672.847 | X116: 397910.8525 | Y116: 406541.2412 | Z116: 404185.9144 | AA116: 411985.2901 | AB116: 407722.7233 | AC116: 414436.5061 | AD116: 407905.4727 | AE116: 413236.0654 | AF116: 404021.629 | AG116: 407622.2971 | AH116: 395248.6067 | AI116: 396716.5566 | AJ116: 380638.7288 | AK116: 379507.283 | AL116: 359102.2584 | AM116: 354832.0161 | AN116: 329388.2652 | AO116: 284281.957 | AP116: 181296.1323 | AQ116: 122455.7043 | AR116: 2.201431926e-09 | AS116: 2.328335905e-09 | AT116: 2.46235068e-09 | AU116: 2.603869138e-09 | AV116: 2.753305719e-09 | AW116: 2.911097596e-09 | AX116: 3.077705914e-09 | AY116: 3.253617102e-09 | AZ116: 3.439344252e-09 | BA116: 3.635428579e-09 | BB116: 3.842440957e-09 | BC116: 4.060983536e-09 | BD116: 4.291691453e-09 | BE116: 4.535234632e-09 | BF116: 4.792319687e-09 | BG116: 5.063691919e-09 | BH116: 5.350137436e-09 | BI116: 5.652485375e-09 | BJ116: 5.971610255e-09 | BK116: 6.308434453e-09 | BL116: 6.663930814e-09 | BM116: 7.039125409e-09 | BN116: 7.43510044e-09 | BO116: 7.852997301e-09 | BP116: 8.294019808e-09 | BQ116: 8.759437608e-09
D117: Add: Draws | E117: Sol | I117: =I108*I7 -> 313600 | J117: =J108*J7 -> 0 | K117: =K108*K7 -> 0 | L117: =L108*L7 -> 0 | M117: =M108*M7 -> 0 | N117: =N108*N7 -> 0 | O117: =O108*O7 -> 0 | P117: =P108*P7 -> 0 | Q117: =Q108*Q7 -> 0 | R117: =R108*R7 -> 0 | S117: =S108*S7 -> 0 | T117: =T108*T7 -> 0 | U117: =U108*U7 -> 0 | V117: =V108*V7 -> 0 | W117: =W108*W7 -> 0 | X117: =X108*X7 -> 0 | Y117: =Y108*Y7 -> 0 | Z117: =Z108*Z7 -> 0 | AA117: =AA108*AA7 -> 0 | AB117: =AB108*AB7 -> 0 | AC117: =AC108*AC7 -> 0 | AD117: =AD108*AD7 -> 0 | AE117: =AE108*AE7 -> 0 | AF117: =AF108*AF7 -> 0 | AG117: =AG108*AG7 -> 0 | AH117: =AH108*AH7 -> 0 | AI117: =AI108*AI7 -> 0 | AJ117: =AJ108*AJ7 -> 0 | AK117: =AK108*AK7 -> 0 | AL117: =AL108*AL7 -> 0 | AM117: =AM108*AM7 -> 0 | AN117: =AN108*AN7 -> 0 | AO117: =AO108*AO7 -> 0 | AP117: =AP108*AP7 -> 0 | AQ117: =AQ108*AQ7 -> 0 | AR117: =AR108*AR7 -> 0 | AS117: =AS108*AS7 -> 0 | AT117: =AT108*AT7 -> 0 | AU117: =AU108*AU7 -> 0 | AV117: =AV108*AV7 -> 0 | AW117: =AW108*AW7 -> 0 | AX117: =AX108*AX7 -> 0 | AY117: =AY108*AY7 -> 0 | AZ117: =AZ108*AZ7 -> 0 | BA117: =BA108*BA7 -> 0 | BB117: =BB108*BB7 -> 0 | BC117: =BC108*BC7 -> 0 | BD117: =BD108*BD7 -> 0 | BE117: =BE108*BE7 -> 0 | BF117: =BF108*BF7 -> 0 | BG117: =BG108*BG7 -> 0 | BH117: =BH108*BH7 -> 0 | BI117: =BI108*BI7 -> 0 | BJ117: =BJ108*BJ7 -> 0 | BK117: =BK108*BK7 -> 0 | BL117: =BL108*BL7 -> 0 | BM117: =BM108*BM7 -> 0 | BN117: =BN108*BN7 -> 0 | BO117: =BO108*BO7 -> 0 | BP117: =BP108*BP7 -> 0 | BQ117: =BQ108*BQ7 -> 0
D118: Less: Repayment | E118: Sol | I118: =I109*I7 -> 0 | J118: =J109*J7 -> -938.0151322 | K118: =K109*K7 -> 5072.821234 | L118: =L109*L7 -> -660.7429571 | M118: =M109*M7 -> 5910.756318 | N118: =N109*N7 -> -318.0693797 | O118: =O109*O7 -> 6866.754066 | P118: =P109*P7 -> 100.4147603 | Q118: =Q109*Q7 -> 7956.209346 | R118: =R109*R7 -> 606.5612429 | S118: =S109*S7 -> 9196.435896 | T118: =T109*T7 -> 1213.850864 | U118: =U109*U7 -> 10606.89865 | V118: =V109*V7 -> 1937.602934 | W118: =W109*W7 -> 12209.47367 | X118: =X109*X7 -> 2795.210661 | Y118: =Y109*Y7 -> 14028.73886 | Z118: =Z109*Z7 -> 3806.405543 | AA118: =AA109*AA7 -> 16092.2991 | AB118: =AB109*AB7 -> 4993.554239 | AC118: =AC109*AC7 -> 18431.14982 | AD118: =AD109*AD7 -> 6381.991834 | AE118: =AE109*AE7 -> 21080.08345 | AF118: =AF109*AF7 -> 8000.395836 | AG118: =AG109*AG7 -> 24078.14386 | AH118: =AH109*AH7 -> 9881.205784 | AI118: =AI109*AI7 -> 27469.13419 | AJ118: =AJ109*AJ7 -> 12061.09391 | AK118: =AK109*AK7 -> 31302.18446 | AL118: =AL109*AL7 -> 14581.4929 | AM118: =AM109*AM7 -> 35632.38585 | AN118: =AN109*AN7 -> 54564.35222 | AO118: =AO109*AO7 -> 111148.6876 | AP118: =AP109*AP7 -> 64046.15926 | AQ118: =AQ109*AQ7 -> 125971.8935 | AR118: =AR109*AR7 -> -6.369213443e-11 | AS118: =AS109*AS7 -> -6.715901302e-11 | AT118: =AT109*AT7 -> -7.081460011e-11 | AU118: =AU109*AU7 -> -7.466916745e-11 | AV118: =AV109*AV7 -> -7.87335459e-11 | AW118: =AW109*AW7 -> -8.301915585e-11 | AX118: =AX109*AX7 -> -8.753803933e-11 | AY118: =AY109*AY7 -> -9.230289385e-11 | AZ118: =AZ109*AZ7 -> -9.732710806e-11 | BA118: =BA109*BA7 -> -1.026247994e-10 | BB118: =BB109*BB7 -> -1.082108537e-10 | BC118: =BC109*BC7 -> -1.14100967e-10 | BD118: =BD109*BD7 -> -1.2031169e-10 | BE118: =BE109*BE7 -> -1.268604738e-10 | BF118: =BF109*BF7 -> -1.337657199e-10 | BG118: =BG109*BG7 -> -1.410468311e-10 | BH118: =BH109*BH7 -> -1.487242663e-10 | BI118: =BI109*BI7 -> -1.568195983e-10 | BJ118: =BJ109*BJ7 -> -1.65355574e-10 | BK118: =BK109*BK7 -> -1.743561783e-10 | BL118: =BL109*BL7 -> -1.838467019e-10 | BM118: =BM109*BM7 -> -1.938538119e-10 | BN118: =BN109*BN7 -> -2.04405627e-10 | BO118: =BO109*BO7 -> -2.155317967e-10 | BP118: =BP109*BP7 -> -2.27263584e-10 | BQ118: =BQ109*BQ7 -> -2.396339537e-10
D119: Add: Loss on Translation | E119: Sol | F119: Use Sol/USD | I119: =I116*I94 -> 0 | J119: =J116*J94 -> 9004.700247 | K119: =K116*K94 -> 9290.195054 | L119: =L116*L94 -> 9411.29259 | M119: =M116*M94 -> 9700.500692 | N119: =N116*N94 -> 9809.31929 | O119: =O116*O94 -> 10100.1168 | P119: =P116*P94 -> 10192.95947 | Q119: =Q116*Q94 -> 10482.75647 | R119: =R116*R94 -> 10555.30367 | S119: =S116*S94 -> 10840.97154 | T119: =T116*T94 -> 10888.19268 | U119: =U116*U94 -> 11165.98142 | V119: =V116*V94 -> 11182.0349 | W119: =W116*W94 -> 11447.47922 | X119: =X116*X94 -> 11425.59934 | Y119: =Y116*Y94 -> 11673.41204 | Z119: =Z116*Z94 -> 11605.78126 | AA119: =AA116*AA94 -> 11829.73228 | AB119: =AB116*AB94 -> 11707.33708 | AC119: =AC116*AC94 -> 11900.11642 | AD119: =AD116*AD94 -> 11712.58454 | AE119: =AE116*AE94 -> 11865.647 | AF119: =AF116*AF94 -> 11601.06397 | AG119: =AG116*AG94 -> 11704.45344 | AH119: =AH116*AH94 -> 11349.1557 | AI119: =AI116*AI94 -> 11391.30636 | AJ119: =AJ116*AJ94 -> 10929.64813 | AK119: =AK116*AK94 -> 10897.15984 | AL119: =AL116*AL94 -> 10311.25062 | AM119: =AM116*AM94 -> 10188.63502 | AN119: =AN116*AN94 -> 9458.043984 | AO119: =AO116*AO94 -> 8162.862909 | AP119: =AP116*AP94 -> 5205.731274 | AQ119: =AQ116*AQ94 -> 3516.18913 | AR119: =AR116*AR94 -> 6.321184504e-11 | AS119: =AS116*AS94 -> 6.68557618e-11 | AT119: =AT116*AT94 -> 7.07038577e-11 | AU119: =AU116*AU94 -> 7.476741412e-11 | AV119: =AV116*AV94 -> 7.905833128e-11 | AW119: =AW116*AW94 -> 8.358916214e-11 | AX119: =AX116*AX94 -> 8.837314798e-11 | AY119: =AY116*AY94 -> 9.342425612e-11 | AZ119: =AZ116*AZ94 -> 9.875721949e-11 | BA119: =BA116*BA94 -> 1.043875785e-10 | BB119: =BB116*BB94 -> 1.103317252e-10 | BC119: =BC116*BC94 -> 1.166069498e-10 | BD119: =BD116*BD94 -> 1.232314894e-10 | BE119: =BE116*BE94 -> 1.302245804e-10 | BF119: =BF116*BF94 -> 1.376065123e-10 | BG119: =BG116*BG94 -> 1.453986858e-10 | BH119: =BH116*BH94 -> 1.536236731e-10 | BI119: =BI116*BI94 -> 1.623052821e-10 | BJ119: =BJ116*BJ94 -> 1.714686235e-10 | BK119: =BK116*BK94 -> 1.811401826e-10 | BL119: =BL116*BL94 -> 1.913478936e-10 | BM119: =BM116*BM94 -> 2.021212191e-10 | BN119: =BN116*BN94 -> 2.134912333e-10 | BO119: =BO116*BO94 -> 2.254907102e-10 | BP119: =BP116*BP94 -> 2.381542162e-10 | BQ119: =BQ116*BQ94 -> 2.515182079e-10
D120: Closing Balance | E120: Sol | I120: =I116+I117-I118+I119 -> 313600 | J120: =J116+J117-J118+J119 -> 323542.7154 | K120: 327760.0892 | L120: 337832.1247 | M120: 341621.8691 | N120: 351749.2578 | O120: 354982.6205 | P120: 365075.1652 | Q120: 367601.7124 | R120: 377550.4548 | S120: 379194.9904 | T120: 388869.3322 | U120: 389428.415 | V120: 398672.847 | W120: 397910.8525 | X120: 406541.2412 | Y120: 404185.9144 | Z120: 411985.2901 | AA120: 407722.7233 | AB120: 414436.5061 | AC120: 407905.4727 | AD120: 413236.0654 | AE120: 404021.629 | AF120: 407622.2971 | AG120: 395248.6067 | AH120: 396716.5566 | AI120: 380638.7288 | AJ120: 379507.283 | AK120: 359102.2584 | AL120: 354832.0161 | AM120: 329388.2652 | AN120: 284281.957 | AO120: 181296.1323 | AP120: 122455.7043 | AQ120: 2.201431926e-09 | AR120: 2.328335905e-09 | AS120: 2.46235068e-09 | AT120: 2.603869138e-09 | AU120: 2.753305719e-09 | AV120: 2.911097596e-09 | AW120: 3.077705914e-09 | AX120: 3.253617102e-09 | AY120: 3.439344252e-09 | AZ120: 3.635428579e-09 | BA120: 3.842440957e-09 | BB120: 4.060983536e-09 | BC120: 4.291691453e-09 | BD120: 4.535234632e-09 | BE120: 4.792319687e-09 | BF120: 5.063691919e-09 | BG120: 5.350137436e-09 | BH120: 5.652485375e-09 | BI120: 5.971610255e-09 | BJ120: 6.308434453e-09 | BK120: 6.663930814e-09 | BL120: 7.039125409e-09 | BM120: 7.43510044e-09 | BN120: 7.852997301e-09 | BO120: 8.294019808e-09 | BP120: 8.759437608e-09 | BQ120: 9.25058977e-09
D121: Interest Expense | E121: Sol | I121: =I111*I7 -> 0 | J121: =J111*J7 -> 8065.117506 | K121: =K111*K7 -> 8320.822761 | L121: =L111*L7 -> 8429.284545 | M121: =M111*M7 -> 8688.315636 | N121: =N111*N7 -> 8785.77971 | O121: =O111*O7 -> 9046.234365 | P121: =P111*P7 -> 9129.3895 | Q121: =Q111*Q7 -> 9388.948043 | R121: =R111*R7 -> 9453.925401 | S121: =S111*S7 -> 9709.785658 | T121: =T111*T7 -> 9752.079578 | U121: =U111*U7 -> 10000.88284 | V121: =V111*V7 -> 10015.26125 | W121: =W111*W7 -> 10253.00815 | X121: =X111*X7 -> 10233.4113 | Y121: =Y111*Y7 -> 10455.36633 | Z121: =Z111*Z7 -> 10394.79239 | AA121: =AA111*AA7 -> 10595.37556 | AB121: =AB111*AB7 -> 10485.75151 | AC121: =AC111*AC7 -> 10658.41556 | AD121: =AD111*AD7 -> 10490.45143 | AE121: =AE111*AE7 -> 10627.54281 | AF121: =AF111*AF7 -> 10390.56732 | AG121: =AG111*AG7 -> 10483.16876 | AH121: =AH111*AH7 -> 10164.94406 | AI121: =AI111*AI7 -> 10202.69657 | AJ121: =AJ111*AJ7 -> 9789.209422 | AK121: =AK111*AK7 -> 9760.11107 | AL121: =AL111*AL7 -> 9235.337724 | AM121: =AM111*AM7 -> 9125.516277 | AN121: =AN111*AN7 -> 8471.157731 | AO121: =AO111*AO7 -> 7311.120498 | AP121: =AP111*AP7 -> 4662.54659 | AQ121: =AQ111*AQ7 -> 3149.297337 | AR121: =AR111*AR7 -> 6.369213443e-11 | AS121: =AS111*AS7 -> 6.715901302e-11 | AT121: =AT111*AT7 -> 7.081460011e-11 | AU121: =AU111*AU7 -> 7.466916745e-11 | AV121: =AV111*AV7 -> 7.87335459e-11 | AW121: =AW111*AW7 -> 8.301915585e-11 | AX121: =AX111*AX7 -> 8.753803933e-11 | AY121: =AY111*AY7 -> 9.230289385e-11 | AZ121: =AZ111*AZ7 -> 9.732710806e-11 | BA121: =BA111*BA7 -> 1.026247994e-10 | BB121: =BB111*BB7 -> 1.082108537e-10 | BC121: =BC111*BC7 -> 1.14100967e-10 | BD121: =BD111*BD7 -> 1.2031169e-10 | BE121: =BE111*BE7 -> 1.268604738e-10 | BF121: =BF111*BF7 -> 1.337657199e-10 | BG121: =BG111*BG7 -> 1.410468311e-10 | BH121: =BH111*BH7 -> 1.487242663e-10 | BI121: =BI111*BI7 -> 1.568195983e-10 | BJ121: =BJ111*BJ7 -> 1.65355574e-10 | BK121: =BK111*BK7 -> 1.743561783e-10 | BL121: =BL111*BL7 -> 1.838467019e-10 | BM121: =BM111*BM7 -> 1.938538119e-10 | BN121: =BN111*BN7 -> 2.04405627e-10 | BO121: =BO111*BO7 -> 2.155317967e-10 | BP121: =BP111*BP7 -> 2.27263584e-10 | BQ121: =BQ111*BQ7 -> 2.396339537e-10
D122: Interest Expense - Loss | E122: Sol | I122: =I121+I119 -> 0 | J122: =J121+J119 -> 17069.81775 | K122: =K121+K119 -> 17611.01782 | L122: 17840.57713 | M122: 18388.81633 | N122: 18595.099 | O122: 19146.35116 | P122: 19322.34897 | Q122: 19871.70452 | R122: 20009.22907 | S122: 20550.75719 | T122: 20640.27226 | U122: 21166.86426 | V122: 21197.29615 | W122: 21700.48738 | X122: 21659.01063 | Y122: 22128.77837 | Z122: 22000.57365 | AA122: 22425.10784 | AB122: 22193.08858 | AC122: 22558.53198 | AD122: 22203.03597 | AE122: 22493.18981 | AF122: 21991.6313 | AG122: 22187.6222 | AH122: 21514.09975 | AI122: 21594.00294 | AJ122: 20718.85756 | AK122: 20657.27091 | AL122: 19546.58834 | AM122: 19314.1513 | AN122: 17929.20171 | AO122: 15473.98341 | AP122: 9868.277864 | AQ122: 6665.486466 | AR122: 1.269039795e-10 | AS122: 1.340147748e-10 | AT122: 1.415184578e-10 | AU122: 1.494365816e-10 | AV122: 1.577918772e-10 | AW122: 1.66608318e-10 | AX122: 1.759111873e-10 | AY122: 1.8572715e-10 | AZ122: 1.960843276e-10 | BA122: 2.070123779e-10 | BB122: 2.185425789e-10 | BC122: 2.307079168e-10 | BD122: 2.435431794e-10 | BE122: 2.570850542e-10 | BF122: 2.713722322e-10 | BG122: 2.864455169e-10 | BH122: 3.023479394e-10 | BI122: 3.191248804e-10 | BJ122: 3.368241975e-10 | BK122: 3.55496361e-10 | BL122: 3.751945955e-10 | BM122: 3.95975031e-10 | BN122: 4.178968604e-10 | BO122: 4.410225069e-10 | BP122: 4.654178002e-10 | BQ122: 4.911521616e-10
D123: Yield with the Loss | E123: Sol | I123: =IF(I116>0.1,I122/I116) -> FALSE | J123: =IF(J116>0.1,J122/J116) -> 0.05443181681 | K123: =IF(K116>0.1,K122/K116) -> 0.05443181681 | L123: 0.05443181681 | M123: 0.05443181681 | N123: 0.05443181681 | O123: 0.05443181681 | P123: 0.05443181681 | Q123: 0.05443181681 | R123: 0.05443181681 | S123: 0.05443181681 | T123: 0.05443181681 | U123: 0.05443181681 | V123: 0.05443181681 | W123: 0.05443181681 | X123: 0.05443181681 | Y123: 0.05443181681 | Z123: 0.05443181681 | AA123: 0.05443181681 | AB123: 0.05443181681 | AC123: 0.05443181681 | AD123: 0.05443181681 | AE123: 0.05443181681 | AF123: 0.05443181681 | AG123: 0.05443181681 | AH123: 0.05443181681 | AI123: 0.05443181681 | AJ123: 0.05443181681 | AK123: 0.05443181681 | AL123: 0.05443181681 | AM123: 0.05443181681 | AN123: 0.05443181681 | AO123: 0.05443181681 | AP123: 0.05443181681 | AQ123: 0.05443181681 | AR123: FALSE | AS123: FALSE | AT123: FALSE | AU123: FALSE | AV123: FALSE | AW123: FALSE | AX123: FALSE | AY123: FALSE | AZ123: FALSE | BA123: FALSE | BB123: FALSE | BC123: FALSE | BD123: FALSE | BE123: FALSE | BF123: FALSE | BG123: FALSE | BH123: FALSE | BI123: FALSE | BJ123: FALSE | BK123: FALSE | BL123: FALSE | BM123: FALSE | BN123: FALSE | BO123: FALSE | BP123: FALSE | BQ123: FALSE
D125: Debt Service SOL | E125: Sol | I125: =I118+I121 -> 0 | J125: =J118+J121 -> 7127.102374 | K125: 13393.64399 | L125: 7768.541588 | M125: 14599.07195 | N125: 8467.710331 | O125: 15912.98843 | P125: 9229.80426 | Q125: 17345.15739 | R125: 10060.48664 | S125: 18906.22155 | T125: 10965.93044 | U125: 20607.78149 | V125: 11952.86418 | W125: 22462.48183 | X125: 13028.62196 | Y125: 24484.10519 | Z125: 14201.19793 | AA125: 26687.67466 | AB125: 15479.30575 | AC125: 29089.56538 | AD125: 16872.44327 | AE125: 31707.62626 | AF125: 18390.96316 | AG125: 34561.31263 | AH125: 20046.14984 | AI125: 37671.83076 | AJ125: 21850.30333 | AK125: 41062.29553 | AL125: 23816.83063 | AM125: 44757.90213 | AN125: 63035.50996 | AO125: 118459.8081 | AP125: 68708.70585 | AQ125: 129121.1908 | AR125: 0 | AS125: 0 | AT125: 0 | AU125: 0 | AV125: 0 | AW125: 0 | AX125: 0 | AY125: 0 | AZ125: 0 | BA125: 0 | BB125: 0 | BC125: 0 | BD125: 0 | BE125: 0 | BF125: 0 | BG125: 0 | BH125: 0 | BI125: 0 | BJ125: 0 | BK125: 0 | BL125: 0 | BM125: 0 | BN125: 0 | BO125: 0 | BP125: 0 | BQ125: 0
D126: Debt Issued in SOL | E126: Sol | I126: =I117 -> 313600 | J126: =J117 -> 0 | K126: 0 | L126: 0 | M126: 0 | N126: 0 | O126: 0 | P126: 0 | Q126: 0 | R126: 0 | S126: 0 | T126: 0 | U126: 0 | V126: 0 | W126: 0 | X126: 0 | Y126: 0 | Z126: 0 | AA126: 0 | AB126: 0 | AC126: 0 | AD126: 0 | AE126: 0 | AF126: 0 | AG126: 0 | AH126: 0 | AI126: 0 | AJ126: 0 | AK126: 0 | AL126: 0 | AM126: 0 | AN126: 0 | AO126: 0 | AP126: 0 | AQ126: 0 | AR126: 0 | AS126: 0 | AT126: 0 | AU126: 0 | AV126: 0 | AW126: 0 | AX126: 0 | AY126: 0 | AZ126: 0 | BA126: 0 | BB126: 0 | BC126: 0 | BD126: 0 | BE126: 0 | BF126: 0 | BG126: 0 | BH126: 0 | BI126: 0 | BJ126: 0 | BK126: 0 | BL126: 0 | BM126: 0 | BN126: 0 | BO126: 0 | BP126: 0 | BQ126: 0
D127: Debt Cash Flow in SOL | E127: Sol | I127: =I125-I126 -> -313600 | J127: =J125-J126 -> 7127.102374 | K127: 13393.64399 | L127: 7768.541588 | M127: 14599.07195 | N127: 8467.710331 | O127: 15912.98843 | P127: 9229.80426 | Q127: 17345.15739 | R127: 10060.48664 | S127: 18906.22155 | T127: 10965.93044 | U127: 20607.78149 | V127: 11952.86418 | W127: 22462.48183 | X127: 13028.62196 | Y127: 24484.10519 | Z127: 14201.19793 | AA127: 26687.67466 | AB127: 15479.30575 | AC127: 29089.56538 | AD127: 16872.44327 | AE127: 31707.62626 | AF127: 18390.96316 | AG127: 34561.31263 | AH127: 20046.14984 | AI127: 37671.83076 | AJ127: 21850.30333 | AK127: 41062.29553 | AL127: 23816.83063 | AM127: 44757.90213 | AN127: 63035.50996 | AO127: 118459.8081 | AP127: 68708.70585 | AQ127: 129121.1908 | AR127: 0 | AS127: 0 | AT127: 0 | AU127: 0 | AV127: 0 | AW127: 0 | AX127: 0 | AY127: 0 | AZ127: 0 | BA127: 0 | BB127: 0 | BC127: 0 | BD127: 0 | BE127: 0 | BF127: 0 | BG127: 0 | BH127: 0 | BI127: 0 | BJ127: 0 | BK127: 0 | BL127: 0 | BM127: 0 | BN127: 0 | BO127: 0 | BP127: 0 | BQ127: 0
D129: Debt IRR for Issue | E129: Sol | F129: =IRR(I127:BQ127) -> 0.05443181681
B131: Step 4: Debt IRR
C132: Total Debt Service
D133: Debt Service Issue 1 | E133: Sol | I133: =I79 -> FALSE | J133: =J79 -> 10178.54306 | K133: =K79 -> 19128.07969 | L133: =L79 -> 11094.61194 | M133: =M79 -> 20849.60686 | N133: =N79 -> 12093.12701 | O133: =O79 -> 22726.07148 | P133: =P79 -> 13181.50844 | Q133: =Q79 -> 24771.41791 | R133: =R79 -> 14367.8442 | S133: =S79 -> 27000.84552 | T133: =T79 -> 15660.95018 | U133: =U79 -> 29430.92162 | V133: =V79 -> 17070.4357 | W133: =W79 -> 32079.70457 | X133: =X79 -> 18606.77491 | Y133: =Y79 -> 34966.87798 | Z133: =Z79 -> 20281.38465 | AA133: =AA79 -> 38113.897 | AB133: =AB79 -> 22106.70927 | AC133: =AC79 -> 41544.14773 | AD133: =AD79 -> 24096.31311 | AE133: =AE79 -> 45283.12102 | AF133: =AF79 -> 26264.98129 | AG133: =AG79 -> 49358.60191 | AH133: =AH79 -> 28628.8296 | AI133: =AI79 -> 53800.87609 | AJ133: =AJ79 -> 31205.42427 | AK133: =AK79 -> 58642.95493 | AL133: =AL79 -> 34013.91245 | AM133: =AM79 -> 63920.82088 | AN133: =AN79 -> FALSE | AO133: =AO79 -> FALSE | AP133: =AP79 -> FALSE | AQ133: =AQ79 -> FALSE | AR133: =AR79 -> FALSE | AS133: =AS79 -> FALSE | AT133: =AT79 -> FALSE | AU133: =AU79 -> FALSE | AV133: =AV79 -> FALSE | AW133: =AW79 -> FALSE | AX133: =AX79 -> FALSE | AY133: =AY79 -> FALSE | AZ133: =AZ79 -> FALSE | BA133: =BA79 -> FALSE | BB133: =BB79 -> FALSE | BC133: =BC79 -> FALSE | BD133: =BD79 -> FALSE | BE133: =BE79 -> FALSE | BF133: =BF79 -> FALSE | BG133: =BG79 -> FALSE | BH133: =BH79 -> FALSE | BI133: =BI79 -> FALSE | BJ133: =BJ79 -> FALSE | BK133: =BK79 -> FALSE | BL133: =BL79 -> FALSE | BM133: =BM79 -> FALSE | BN133: =BN79 -> FALSE | BO133: =BO79 -> FALSE | BP133: =BP79 -> FALSE | BQ133: =BQ79 -> FALSE
D134: Debt Service Issue 2 | E134: Sol | I134: =I125 -> 0 | J134: =J125 -> 7127.102374 | K134: 13393.64399 | L134: 7768.541588 | M134: 14599.07195 | N134: 8467.710331 | O134: 15912.98843 | P134: 9229.80426 | Q134: 17345.15739 | R134: 10060.48664 | S134: 18906.22155 | T134: 10965.93044 | U134: 20607.78149 | V134: 11952.86418 | W134: 22462.48183 | X134: 13028.62196 | Y134: 24484.10519 | Z134: 14201.19793 | AA134: 26687.67466 | AB134: 15479.30575 | AC134: 29089.56538 | AD134: 16872.44327 | AE134: 31707.62626 | AF134: 18390.96316 | AG134: 34561.31263 | AH134: 20046.14984 | AI134: 37671.83076 | AJ134: 21850.30333 | AK134: 41062.29553 | AL134: 23816.83063 | AM134: 44757.90213 | AN134: 63035.50996 | AO134: 118459.8081 | AP134: 68708.70585 | AQ134: 129121.1908 | AR134: 0 | AS134: 0 | AT134: 0 | AU134: 0 | AV134: 0 | AW134: 0 | AX134: 0 | AY134: 0 | AZ134: 0 | BA134: 0 | BB134: 0 | BC134: 0 | BD134: 0 | BE134: 0 | BF134: 0 | BG134: 0 | BH134: 0 | BI134: 0 | BJ134: 0 | BK134: 0 | BL134: 0 | BM134: 0 | BN134: 0 | BO134: 0 | BP134: 0 | BQ134: 0
D135: Total | E135: Sol | I135: =SUM(I133:I134) -> 0 | J135: =SUM(J133:J134) -> 17305.64544 | K135: 32521.72368 | L135: 18863.15353 | M135: 35448.67882 | N135: 20560.83734 | O135: 38639.05991 | P135: 22411.3127 | Q135: 42116.5753 | R135: 24428.33085 | S135: 45907.06708 | T135: 26626.88062 | U135: 50038.70312 | V135: 29023.29988 | W135: 54542.1864 | X135: 31635.39687 | Y135: 59450.98317 | Z135: 34482.58259 | AA135: 64801.57166 | AB135: 37586.01502 | AC135: 70633.71311 | AD135: 40968.75637 | AE135: 76990.74728 | AF135: 44655.94444 | AG135: 83919.91454 | AH135: 48674.97944 | AI135: 91472.70685 | AJ135: 53055.72759 | AK135: 99705.25047 | AL135: 57830.74308 | AM135: 108678.723 | AN135: 63035.50996 | AO135: 118459.8081 | AP135: 68708.70585 | AQ135: 129121.1908 | AR135: 0 | AS135: 0 | AT135: 0 | AU135: 0 | AV135: 0 | AW135: 0 | AX135: 0 | AY135: 0 | AZ135: 0 | BA135: 0 | BB135: 0 | BC135: 0 | BD135: 0 | BE135: 0 | BF135: 0 | BG135: 0 | BH135: 0 | BI135: 0 | BJ135: 0 | BK135: 0 | BL135: 0 | BM135: 0 | BN135: 0 | BO135: 0 | BP135: 0 | BQ135: 0
C137: Dbt Issued
D138: Debt Service Issue 1 | E138: Sol | F138: =F76 -> 470400 | I138: =$F$138*I5 -> 470400 | J138: =$F$138*J5 -> 0 | K138: =$F$138*K5 -> 0 | L138: =$F$138*L5 -> 0 | M138: =$F$138*M5 -> 0 | N138: =$F$138*N5 -> 0 | O138: =$F$138*O5 -> 0 | P138: =$F$138*P5 -> 0 | Q138: =$F$138*Q5 -> 0 | R138: =$F$138*R5 -> 0 | S138: =$F$138*S5 -> 0 | T138: =$F$138*T5 -> 0 | U138: =$F$138*U5 -> 0 | V138: =$F$138*V5 -> 0 | W138: =$F$138*W5 -> 0 | X138: =$F$138*X5 -> 0 | Y138: =$F$138*Y5 -> 0 | Z138: =$F$138*Z5 -> 0 | AA138: =$F$138*AA5 -> 0 | AB138: =$F$138*AB5 -> 0 | AC138: =$F$138*AC5 -> 0 | AD138: =$F$138*AD5 -> 0 | AE138: =$F$138*AE5 -> 0 | AF138: =$F$138*AF5 -> 0 | AG138: =$F$138*AG5 -> 0 | AH138: =$F$138*AH5 -> 0 | AI138: =$F$138*AI5 -> 0 | AJ138: =$F$138*AJ5 -> 0 | AK138: =$F$138*AK5 -> 0 | AL138: =$F$138*AL5 -> 0 | AM138: =$F$138*AM5 -> 0 | AN138: =$F$138*AN5 -> 0 | AO138: =$F$138*AO5 -> 0 | AP138: =$F$138*AP5 -> 0 | AQ138: =$F$138*AQ5 -> 0 | AR138: =$F$138*AR5 -> 0 | AS138: =$F$138*AS5 -> 0 | AT138: =$F$138*AT5 -> 0 | AU138: =$F$138*AU5 -> 0 | AV138: =$F$138*AV5 -> 0 | AW138: =$F$138*AW5 -> 0 | AX138: =$F$138*AX5 -> 0 | AY138: =$F$138*AY5 -> 0 | AZ138: =$F$138*AZ5 -> 0 | BA138: =$F$138*BA5 -> 0 | BB138: =$F$138*BB5 -> 0 | BC138: =$F$138*BC5 -> 0 | BD138: =$F$138*BD5 -> 0 | BE138: =$F$138*BE5 -> 0 | BF138: =$F$138*BF5 -> 0 | BG138: =$F$138*BG5 -> 0 | BH138: =$F$138*BH5 -> 0 | BI138: =$F$138*BI5 -> 0 | BJ138: =$F$138*BJ5 -> 0 | BK138: =$F$138*BK5 -> 0 | BL138: =$F$138*BL5 -> 0 | BM138: =$F$138*BM5 -> 0 | BN138: =$F$138*BN5 -> 0 | BO138: =$F$138*BO5 -> 0 | BP138: =$F$138*BP5 -> 0 | BQ138: =$F$138*BQ5 -> 0
D139: Debt Service Issue 2 | E139: Sol | F139: =F105*I7 -> 313600 | I139: =$F$139*I5 -> 313600 | J139: =$F$139*J5 -> 0 | K139: =$F$139*K5 -> 0 | L139: =$F$139*L5 -> 0 | M139: =$F$139*M5 -> 0 | N139: =$F$139*N5 -> 0 | O139: =$F$139*O5 -> 0 | P139: =$F$139*P5 -> 0 | Q139: =$F$139*Q5 -> 0 | R139: =$F$139*R5 -> 0 | S139: =$F$139*S5 -> 0 | T139: =$F$139*T5 -> 0 | U139: =$F$139*U5 -> 0 | V139: =$F$139*V5 -> 0 | W139: =$F$139*W5 -> 0 | X139: =$F$139*X5 -> 0 | Y139: =$F$139*Y5 -> 0 | Z139: =$F$139*Z5 -> 0 | AA139: =$F$139*AA5 -> 0 | AB139: =$F$139*AB5 -> 0 | AC139: =$F$139*AC5 -> 0 | AD139: =$F$139*AD5 -> 0 | AE139: =$F$139*AE5 -> 0 | AF139: =$F$139*AF5 -> 0 | AG139: =$F$139*AG5 -> 0 | AH139: =$F$139*AH5 -> 0 | AI139: =$F$139*AI5 -> 0 | AJ139: =$F$139*AJ5 -> 0 | AK139: =$F$139*AK5 -> 0 | AL139: =$F$139*AL5 -> 0 | AM139: =$F$139*AM5 -> 0 | AN139: =$F$139*AN5 -> 0 | AO139: =$F$139*AO5 -> 0 | AP139: =$F$139*AP5 -> 0 | AQ139: =$F$139*AQ5 -> 0 | AR139: =$F$139*AR5 -> 0 | AS139: =$F$139*AS5 -> 0 | AT139: =$F$139*AT5 -> 0 | AU139: =$F$139*AU5 -> 0 | AV139: =$F$139*AV5 -> 0 | AW139: =$F$139*AW5 -> 0 | AX139: =$F$139*AX5 -> 0 | AY139: =$F$139*AY5 -> 0 | AZ139: =$F$139*AZ5 -> 0 | BA139: =$F$139*BA5 -> 0 | BB139: =$F$139*BB5 -> 0 | BC139: =$F$139*BC5 -> 0 | BD139: =$F$139*BD5 -> 0 | BE139: =$F$139*BE5 -> 0 | BF139: =$F$139*BF5 -> 0 | BG139: =$F$139*BG5 -> 0 | BH139: =$F$139*BH5 -> 0 | BI139: =$F$139*BI5 -> 0 | BJ139: =$F$139*BJ5 -> 0 | BK139: =$F$139*BK5 -> 0 | BL139: =$F$139*BL5 -> 0 | BM139: =$F$139*BM5 -> 0 | BN139: =$F$139*BN5 -> 0 | BO139: =$F$139*BO5 -> 0 | BP139: =$F$139*BP5 -> 0 | BQ139: =$F$139*BQ5 -> 0
D140: Total | E140: Sol | F140: =SUM(F138:F139) -> 784000 | I140: =SUM(I138:I139) -> 784000 | J140: =SUM(J138:J139) -> 0 | K140: 0 | L140: 0 | M140: 0 | N140: 0 | O140: 0 | P140: 0 | Q140: 0 | R140: 0 | S140: 0 | T140: 0 | U140: 0 | V140: 0 | W140: 0 | X140: 0 | Y140: 0 | Z140: 0 | AA140: 0 | AB140: 0 | AC140: 0 | AD140: 0 | AE140: 0 | AF140: 0 | AG140: 0 | AH140: 0 | AI140: 0 | AJ140: 0 | AK140: 0 | AL140: 0 | AM140: 0 | AN140: 0 | AO140: 0 | AP140: 0 | AQ140: 0 | AR140: 0 | AS140: 0 | AT140: 0 | AU140: 0 | AV140: 0 | AW140: 0 | AX140: 0 | AY140: 0 | AZ140: 0 | BA140: 0 | BB140: 0 | BC140: 0 | BD140: 0 | BE140: 0 | BF140: 0 | BG140: 0 | BH140: 0 | BI140: 0 | BJ140: 0 | BK140: 0 | BL140: 0 | BM140: 0 | BN140: 0 | BO140: 0 | BP140: 0 | BQ140: 0
C142: Debt Cash Flow | E142: Sol | I142: =I135-I140 -> -784000 | J142: =J135-J140 -> 17305.64544 | K142: 32521.72368 | L142: 18863.15353 | M142: 35448.67882 | N142: 20560.83734 | O142: 38639.05991 | P142: 22411.3127 | Q142: 42116.5753 | R142: 24428.33085 | S142: 45907.06708 | T142: 26626.88062 | U142: 50038.70312 | V142: 29023.29988 | W142: 54542.1864 | X142: 31635.39687 | Y142: 59450.98317 | Z142: 34482.58259 | AA142: 64801.57166 | AB142: 37586.01502 | AC142: 70633.71311 | AD142: 40968.75637 | AE142: 76990.74728 | AF142: 44655.94444 | AG142: 83919.91454 | AH142: 48674.97944 | AI142: 91472.70685 | AJ142: 53055.72759 | AK142: 99705.25047 | AL142: 57830.74308 | AM142: 108678.723 | AN142: 63035.50996 | AO142: 118459.8081 | AP142: 68708.70585 | AQ142: 129121.1908 | AR142: 0 | AS142: 0 | AT142: 0 | AU142: 0 | AV142: 0 | AW142: 0 | AX142: 0 | AY142: 0 | AZ142: 0 | BA142: 0 | BB142: 0 | BC142: 0 | BD142: 0 | BE142: 0 | BF142: 0 | BG142: 0 | BH142: 0 | BI142: 0 | BJ142: 0 | BK142: 0 | BL142: 0 | BM142: 0 | BN142: 0 | BO142: 0 | BP142: 0 | BQ142: 0
C143: Debt IRR - Computed | E143: Sol | F143: =IRR(I142:BQ142) -> 0.0444079026 | G143: DIRR Comp
C144: Debt IRR - Fixed | E144: Sol | F144: 0.0444079026 | G144: DIRR Fixed
C145: Debt IRR - Difference | E145: Sol | F145: =F143-F144 -> 0 | G145: Difference
B147: Outputs
C148: CFADS | E148: Sol | I148: =I24-I28 -> 0 | J148: =J24-J28 -> 41761.22604 | K148: =K24-K28 -> 78480 | L148: =L24-L28 -> 45519.73638 | M148: =M24-M28 -> 85543.2 | N148: =N24-N28 -> 49616.51265 | O148: =O24-O28 -> 93242.088 | P148: =P24-P28 -> 54081.99879 | Q148: =Q24-Q28 -> 101633.8759 | R148: =R24-R28 -> 58949.37868 | S148: =S24-S28 -> 110780.9248 | T148: =T24-T28 -> 64254.82276 | U148: =U24-U28 -> 120751.208 | V148: =V24-V28 -> 70037.75681 | W148: =W24-W28 -> 131618.8167 | X148: =X24-X28 -> 76341.15493 | Y148: =Y24-Y28 -> 143464.5102 | Z148: =Z24-Z28 -> 83211.85887 | AA148: =AA24-AA28 -> 156376.3161 | AB148: =AB24-AB28 -> 90700.92617 | AC148: =AC24-AC28 -> 170450.1846 | AD148: =AD24-AD28 -> 98864.00952 | AE148: =AE24-AE28 -> 185790.7012 | AF148: =AF24-AF28 -> 107761.7704 | AG148: =AG24-AG28 -> 202511.8643 | AH148: =AH24-AH28 -> 117460.3297 | AI148: =AI24-AI28 -> 220737.9321 | AJ148: =AJ24-AJ28 -> 128031.7594 | AK148: =AK24-AK28 -> 240604.346 | AL148: =AL24-AL28 -> 139554.6177 | AM148: =AM24-AM28 -> 262258.7371 | AN148: =AN24-AN28 -> 152114.5333 | AO148: =AO24-AO28 -> 285862.0234 | AP148: =AP24-AP28 -> 165804.8413 | AQ148: =AQ24-AQ28 -> 311589.6055 | AR148: =AR24-AR28 -> 180727.277 | AS148: =AS24-AS28 -> 339632.67 | AT148: =AT24-AT28 -> 196992.732 | AU148: =AU24-AU28 -> 370199.6103 | AV148: =AV24-AV28 -> 214722.0779 | AW148: =AW24-AW28 -> 403517.5753 | AX148: =AX24-AX28 -> 234047.0649 | AY148: =AY24-AY28 -> 439834.1571 | AZ148: =AZ24-AZ28 -> 255111.3007 | BA148: =BA24-BA28 -> 479419.2312 | BB148: =BB24-BB28 -> 278071.3178 | BC148: =BC24-BC28 -> 522566.962 | BD148: =BD24-BD28 -> 303097.7364 | BE148: =BE24-BE28 -> 569597.9886 | BF148: =BF24-BF28 -> 330376.5326 | BG148: =BG24-BG28 -> 620861.8075 | BH148: =BH24-BH28 -> 360110.4206 | BI148: =BI24-BI28 -> 676739.3702 | BJ148: =BJ24-BJ28 -> 392520.3584 | BK148: =BK24-BK28 -> 737645.9135 | BL148: =BL24-BL28 -> 427847.1907 | BM148: =BM24-BM28 -> 804034.0458 | BN148: =BN24-BN28 -> 466353.4379 | BO148: =BO24-BO28 -> 876397.1099 | BP148: =BP24-BP28 -> 508325.2473 | BQ148: =BQ24-BQ28 -> 0
C149: Less Total Debt Service | E149: Sol | I149: =I135 -> 0 | J149: =J135 -> 17305.64544 | K149: 32521.72368 | L149: 18863.15353 | M149: 35448.67882 | N149: 20560.83734 | O149: 38639.05991 | P149: 22411.3127 | Q149: 42116.5753 | R149: 24428.33085 | S149: 45907.06708 | T149: 26626.88062 | U149: 50038.70312 | V149: 29023.29988 | W149: 54542.1864 | X149: 31635.39687 | Y149: 59450.98317 | Z149: 34482.58259 | AA149: 64801.57166 | AB149: 37586.01502 | AC149: 70633.71311 | AD149: 40968.75637 | AE149: 76990.74728 | AF149: 44655.94444 | AG149: 83919.91454 | AH149: 48674.97944 | AI149: 91472.70685 | AJ149: 53055.72759 | AK149: 99705.25047 | AL149: 57830.74308 | AM149: 108678.723 | AN149: 63035.50996 | AO149: 118459.8081 | AP149: 68708.70585 | AQ149: 129121.1908 | AR149: 0 | AS149: 0 | AT149: 0 | AU149: 0 | AV149: 0 | AW149: 0 | AX149: 0 | AY149: 0 | AZ149: 0 | BA149: 0 | BB149: 0 | BC149: 0 | BD149: 0 | BE149: 0 | BF149: 0 | BG149: 0 | BH149: 0 | BI149: 0 | BJ149: 0 | BK149: 0 | BL149: 0 | BM149: 0 | BN149: 0 | BO149: 0 | BP149: 0 | BQ149: 0
C150: Less: Capital Expenditures | E150: Sol | I150: =I30 -> 1120000
C151: Add: Debt Issued | E151: Sol | I151: =I140 -> 784000
D152: Equity Cash Flow | E152: Sol | I152: =I148-I149-I150+I151 -> -336000 | J152: =J148-J149-J150+J151 -> 24455.5806 | K152: 45958.27632 | L152: 26656.58285 | M152: 50094.52118 | N152: 29055.67531 | O152: 54603.02809 | P152: 31670.68609 | Q152: 59517.30062 | R152: 34521.04784 | S152: 64873.85767 | T152: 37627.94214 | U152: 70712.50487 | V152: 41014.45693 | W152: 77076.6303 | X152: 44705.75806 | Y152: 84013.52703 | Z152: 48729.27628 | AA152: 91574.74446 | AB152: 53114.91115 | AC152: 99816.47147 | AD152: 57895.25315 | AE152: 108799.9539 | AF152: 63105.82594 | AG152: 118591.9497 | AH152: 68785.35027 | AI152: 129265.2252 | AJ152: 74976.03179 | AK152: 140899.0955 | AL152: 81723.87466 | AM152: 153580.0141 | AN152: 89079.02337 | AO152: 167402.2154 | AP152: 97096.13548 | AQ152: 182468.4147 | AR152: 180727.277 | AS152: 339632.67 | AT152: 196992.732 | AU152: 370199.6103 | AV152: 214722.0779 | AW152: 403517.5753 | AX152: 234047.0649 | AY152: 439834.1571 | AZ152: 255111.3007 | BA152: 479419.2312 | BB152: 278071.3178 | BC152: 522566.962 | BD152: 303097.7364 | BE152: 569597.9886 | BF152: 330376.5326 | BG152: 620861.8075 | BH152: 360110.4206 | BI152: 676739.3702 | BJ152: 392520.3584 | BK152: 737645.9135 | BL152: 427847.1907 | BM152: 804034.0458 | BN152: 466353.4379 | BO152: 876397.1099 | BP152: 508325.2473 | BQ152: 0
D154: Equity IRR | E154: % | F154: =IRR(I152:BQ152) -> 0.1467934674
D156: DSCR | F156: =MIN(I156:BQ156) -> 2.413156226 | I156: =IF(I149>0.1,I148/I149) -> FALSE | J156: =IF(J149>0.1,J148/J149) -> 2.413156226 | K156: 2.413156226 | L156: 2.413156226 | M156: 2.413156226 | N156: 2.413156226 | O156: 2.413156226 | P156: 2.413156226 | Q156: 2.413156226 | R156: 2.413156226 | S156: 2.413156226 | T156: 2.413156226 | U156: 2.413156226 | V156: 2.413156226 | W156: 2.413156226 | X156: 2.413156226 | Y156: 2.413156226 | Z156: 2.413156226 | AA156: 2.413156226 | AB156: 2.413156226 | AC156: 2.413156226 | AD156: 2.413156226 | AE156: 2.413156226 | AF156: 2.413156226 | AG156: 2.413156226 | AH156: 2.413156226 | AI156: 2.413156226 | AJ156: 2.413156226 | AK156: 2.413156226 | AL156: 2.413156226 | AM156: 2.413156226 | AN156: 2.413156226 | AO156: 2.413156226 | AP156: 2.413156226 | AQ156: 2.413156226 | AR156: FALSE | AS156: FALSE | AT156: FALSE | AU156: FALSE | AV156: FALSE | AW156: FALSE | AX156: FALSE | AY156: FALSE | AZ156: FALSE | BA156: FALSE | BB156: FALSE | BC156: FALSE | BD156: FALSE | BE156: FALSE | BF156: FALSE | BG156: FALSE | BH156: FALSE | BI156: FALSE | BJ156: FALSE | BK156: FALSE | BL156: FALSE | BM156: FALSE | BN156: FALSE | BO156: FALSE | BP156: FALSE | BQ156: FALSE
C159: CFADS | E159: USD | I159: =I148/I7 -> 0 | J159: =J148/J7 -> 10148.89157 | K159: =K148/K7 -> 18540 | L159: =L148/L7 -> 10453.35831 | M159: =M148/M7 -> 19096.2 | N159: =N148/N7 -> 10766.95906 | O159: =O148/O7 -> 19669.086 | P159: =P148/P7 -> 11089.96783 | Q159: =Q148/Q7 -> 20259.15858 | R159: =R148/R7 -> 11422.66687 | S159: =S148/S7 -> 20866.93334 | T159: =T148/T7 -> 11765.34687 | U159: =U148/U7 -> 21492.94134 | V159: =V148/V7 -> 12118.30728 | W159: =W148/W7 -> 22137.72958 | X159: =X148/X7 -> 12481.8565 | Y159: =Y148/Y7 -> 22801.86146 | Z159: =Z148/Z7 -> 12856.31219 | AA159: =AA148/AA7 -> 23485.91731 | AB159: =AB148/AB7 -> 13242.00156 | AC159: =AC148/AC7 -> 24190.49483 | AD159: =AD148/AD7 -> 13639.26161 | AE159: =AE148/AE7 -> 24916.20967 | AF159: =AF148/AF7 -> 14048.43945 | AG159: =AG148/AG7 -> 25663.69596 | AH159: =AH148/AH7 -> 14469.89264 | AI159: =AI148/AI7 -> 26433.60684 | AJ159: =AJ148/AJ7 -> 14903.98942 | AK159: =AK148/AK7 -> 27226.61505 | AL159: =AL148/AL7 -> 15351.1091 | AM159: =AM148/AM7 -> 28043.4135 | AN159: =AN148/AN7 -> 15811.64237 | AO159: =AO148/AO7 -> 28884.7159 | AP159: =AP148/AP7 -> 16285.99164 | AQ159: =AQ148/AQ7 -> 29751.25738 | AR159: =AR148/AR7 -> 16774.57139 | AS159: =AS148/AS7 -> 30643.7951 | AT159: =AT148/AT7 -> 17277.80854 | AU159: =AU148/AU7 -> 31563.10896 | AV159: =AV148/AV7 -> 17796.14279 | AW159: =AW148/AW7 -> 32510.00222 | AX159: =AX148/AX7 -> 18330.02708 | AY159: =AY148/AY7 -> 33485.30229 | AZ159: =AZ148/AZ7 -> 18879.92789 | BA159: =BA148/BA7 -> 34489.86136 | BB159: =BB148/BB7 -> 19446.32572 | BC159: =BC148/BC7 -> 35524.5572 | BD159: =BD148/BD7 -> 20029.7155 | BE159: =BE148/BE7 -> 36590.29392 | BF159: =BF148/BF7 -> 20630.60696 | BG159: =BG148/BG7 -> 37688.00273 | BH159: =BH148/BH7 -> 21249.52517 | BI159: =BI148/BI7 -> 38818.64282 | BJ159: =BJ148/BJ7 -> 21887.01092 | BK159: =BK148/BK7 -> 39983.2021 | BL159: =BL148/BL7 -> 22543.62125 | BM159: =BM148/BM7 -> 41182.69816 | BN159: =BN148/BN7 -> 23219.92989 | BO159: =BO148/BO7 -> 42418.17911 | BP159: =BP148/BP7 -> 23916.52779 | BQ159: =BQ148/BQ7 -> 0
C160: Less Total Debt Service | E160: USD | I160: =I149/I7 -> 0 | J160: =J149/J7 -> 4205.650448 | K160: =K149/K7 -> 7682.884265 | L160: =L149/L7 -> 4331.819962 | M160: =M149/M7 -> 7913.370793 | N160: =N149/N7 -> 4461.774561 | O160: =O149/O7 -> 8150.771917 | P160: =P149/P7 -> 4595.627797 | Q160: =Q149/Q7 -> 8395.295074 | R160: =R149/R7 -> 4733.496631 | S160: =S149/S7 -> 8647.153926 | T160: =T149/T7 -> 4875.50153 | U160: =U149/U7 -> 8906.568544 | V160: =V149/V7 -> 5021.766576 | W160: =W149/W7 -> 9173.7656 | X160: =X149/X7 -> 5172.419573 | Y160: =Y149/Y7 -> 9448.978568 | Z160: =Z149/Z7 -> 5327.592161 | AA160: =AA149/AA7 -> 9732.447925 | AB160: =AB149/AB7 -> 5487.419925 | AC160: =AC149/AC7 -> 10024.42136 | AD160: =AD149/AD7 -> 5652.042523 | AE160: =AE149/AE7 -> 10325.154 | AF160: =AF149/AF7 -> 5821.603799 | AG160: =AG149/AG7 -> 10634.90862 | AH160: =AH149/AH7 -> 5996.251913 | AI160: =AI149/AI7 -> 10953.95588 | AJ160: =AJ149/AJ7 -> 6176.13947 | AK160: =AK149/AK7 -> 11282.57456 | AL160: =AL149/AL7 -> 6361.423654 | AM160: =AM149/AM7 -> 11621.0518 | AN160: =AN149/AN7 -> 6552.266364 | AO160: =AO149/AO7 -> 11969.68335 | AP160: =AP149/AP7 -> 6748.834355 | AQ160: =AQ149/AQ7 -> 12328.77385 | AR160: =AR149/AR7 -> 0 | AS160: =AS149/AS7 -> 0 | AT160: =AT149/AT7 -> 0 | AU160: =AU149/AU7 -> 0 | AV160: =AV149/AV7 -> 0 | AW160: =AW149/AW7 -> 0 | AX160: =AX149/AX7 -> 0 | AY160: =AY149/AY7 -> 0 | AZ160: =AZ149/AZ7 -> 0 | BA160: =BA149/BA7 -> 0 | BB160: =BB149/BB7 -> 0 | BC160: =BC149/BC7 -> 0 | BD160: =BD149/BD7 -> 0 | BE160: =BE149/BE7 -> 0 | BF160: =BF149/BF7 -> 0 | BG160: =BG149/BG7 -> 0 | BH160: =BH149/BH7 -> 0 | BI160: =BI149/BI7 -> 0 | BJ160: =BJ149/BJ7 -> 0 | BK160: =BK149/BK7 -> 0 | BL160: =BL149/BL7 -> 0 | BM160: =BM149/BM7 -> 0 | BN160: =BN149/BN7 -> 0 | BO160: =BO149/BO7 -> 0 | BP160: =BP149/BP7 -> 0 | BQ160: =BQ149/BQ7 -> 0
C161: Less: Capital Expenditures | E161: USD | I161: =I150/I7 -> 280000 | J161: =J150/J7 -> 0 | K161: =K150/K7 -> 0 | L161: =L150/L7 -> 0 | M161: =M150/M7 -> 0 | N161: =N150/N7 -> 0 | O161: =O150/O7 -> 0 | P161: =P150/P7 -> 0 | Q161: =Q150/Q7 -> 0 | R161: =R150/R7 -> 0 | S161: =S150/S7 -> 0 | T161: =T150/T7 -> 0 | U161: =U150/U7 -> 0 | V161: =V150/V7 -> 0 | W161: =W150/W7 -> 0 | X161: =X150/X7 -> 0 | Y161: =Y150/Y7 -> 0 | Z161: =Z150/Z7 -> 0 | AA161: =AA150/AA7 -> 0 | AB161: =AB150/AB7 -> 0 | AC161: =AC150/AC7 -> 0 | AD161: =AD150/AD7 -> 0 | AE161: =AE150/AE7 -> 0 | AF161: =AF150/AF7 -> 0 | AG161: =AG150/AG7 -> 0 | AH161: =AH150/AH7 -> 0 | AI161: =AI150/AI7 -> 0 | AJ161: =AJ150/AJ7 -> 0 | AK161: =AK150/AK7 -> 0 | AL161: =AL150/AL7 -> 0 | AM161: =AM150/AM7 -> 0 | AN161: =AN150/AN7 -> 0 | AO161: =AO150/AO7 -> 0 | AP161: =AP150/AP7 -> 0 | AQ161: =AQ150/AQ7 -> 0 | AR161: =AR150/AR7 -> 0 | AS161: =AS150/AS7 -> 0 | AT161: =AT150/AT7 -> 0 | AU161: =AU150/AU7 -> 0 | AV161: =AV150/AV7 -> 0 | AW161: =AW150/AW7 -> 0 | AX161: =AX150/AX7 -> 0 | AY161: =AY150/AY7 -> 0 | AZ161: =AZ150/AZ7 -> 0 | BA161: =BA150/BA7 -> 0 | BB161: =BB150/BB7 -> 0 | BC161: =BC150/BC7 -> 0 | BD161: =BD150/BD7 -> 0 | BE161: =BE150/BE7 -> 0 | BF161: =BF150/BF7 -> 0 | BG161: =BG150/BG7 -> 0 | BH161: =BH150/BH7 -> 0 | BI161: =BI150/BI7 -> 0 | BJ161: =BJ150/BJ7 -> 0 | BK161: =BK150/BK7 -> 0 | BL161: =BL150/BL7 -> 0 | BM161: =BM150/BM7 -> 0 | BN161: =BN150/BN7 -> 0 | BO161: =BO150/BO7 -> 0 | BP161: =BP150/BP7 -> 0 | BQ161: =BQ150/BQ7 -> 0
C162: Add: Debt Issued | E162: USD | I162: =I151/I7 -> 196000 | J162: =J151/J7 -> 0 | K162: =K151/K7 -> 0 | L162: =L151/L7 -> 0 | M162: =M151/M7 -> 0 | N162: =N151/N7 -> 0 | O162: =O151/O7 -> 0 | P162: =P151/P7 -> 0 | Q162: =Q151/Q7 -> 0 | R162: =R151/R7 -> 0 | S162: =S151/S7 -> 0 | T162: =T151/T7 -> 0 | U162: =U151/U7 -> 0 | V162: =V151/V7 -> 0 | W162: =W151/W7 -> 0 | X162: =X151/X7 -> 0 | Y162: =Y151/Y7 -> 0 | Z162: =Z151/Z7 -> 0 | AA162: =AA151/AA7 -> 0 | AB162: =AB151/AB7 -> 0 | AC162: =AC151/AC7 -> 0 | AD162: =AD151/AD7 -> 0 | AE162: =AE151/AE7 -> 0 | AF162: =AF151/AF7 -> 0 | AG162: =AG151/AG7 -> 0 | AH162: =AH151/AH7 -> 0 | AI162: =AI151/AI7 -> 0 | AJ162: =AJ151/AJ7 -> 0 | AK162: =AK151/AK7 -> 0 | AL162: =AL151/AL7 -> 0 | AM162: =AM151/AM7 -> 0 | AN162: =AN151/AN7 -> 0 | AO162: =AO151/AO7 -> 0 | AP162: =AP151/AP7 -> 0 | AQ162: =AQ151/AQ7 -> 0 | AR162: =AR151/AR7 -> 0 | AS162: =AS151/AS7 -> 0 | AT162: =AT151/AT7 -> 0 | AU162: =AU151/AU7 -> 0 | AV162: =AV151/AV7 -> 0 | AW162: =AW151/AW7 -> 0 | AX162: =AX151/AX7 -> 0 | AY162: =AY151/AY7 -> 0 | AZ162: =AZ151/AZ7 -> 0 | BA162: =BA151/BA7 -> 0 | BB162: =BB151/BB7 -> 0 | BC162: =BC151/BC7 -> 0 | BD162: =BD151/BD7 -> 0 | BE162: =BE151/BE7 -> 0 | BF162: =BF151/BF7 -> 0 | BG162: =BG151/BG7 -> 0 | BH162: =BH151/BH7 -> 0 | BI162: =BI151/BI7 -> 0 | BJ162: =BJ151/BJ7 -> 0 | BK162: =BK151/BK7 -> 0 | BL162: =BL151/BL7 -> 0 | BM162: =BM151/BM7 -> 0 | BN162: =BN151/BN7 -> 0 | BO162: =BO151/BO7 -> 0 | BP162: =BP151/BP7 -> 0 | BQ162: =BQ151/BQ7 -> 0
D163: Equity Cash Flow | E163: USD | I163: =I159-I160-I161+I162 -> -84000 | J163: =J159-J160-J161+J162 -> 5943.241117 | K163: 10857.11574 | L163: 6121.53835 | M163: 11182.82921 | N163: 6305.184501 | O163: 11518.31408 | P163: 6494.340036 | Q163: 11863.86351 | R163: 6689.170237 | S163: 12219.77941 | T163: 6889.845344 | U163: 12586.37279 | V163: 7096.540704 | W163: 12963.96398 | X163: 7309.436925 | Y163: 13352.8829 | Z163: 7528.720033 | AA163: 13753.46938 | AB163: 7754.581634 | AC163: 14166.07346 | AD163: 7987.219083 | AE163: 14591.05567 | AF163: 8226.835656 | AG163: 15028.78734 | AH163: 8473.640725 | AI163: 15479.65096 | AJ163: 8727.849947 | AK163: 15944.04049 | AL163: 8989.685446 | AM163: 16422.3617 | AN163: 9259.376009 | AO163: 16915.03255 | AP163: 9537.157289 | AQ163: 17422.48353 | AR163: 16774.57139 | AS163: 30643.7951 | AT163: 17277.80854 | AU163: 31563.10896 | AV163: 17796.14279 | AW163: 32510.00222 | AX163: 18330.02708 | AY163: 33485.30229 | AZ163: 18879.92789 | BA163: 34489.86136 | BB163: 19446.32572 | BC163: 35524.5572 | BD163: 20029.7155 | BE163: 36590.29392 | BF163: 20630.60696 | BG163: 37688.00273 | BH163: 21249.52517 | BI163: 38818.64282 | BJ163: 21887.01092 | BK163: 39983.2021 | BL163: 22543.62125 | BM163: 41182.69816 | BN163: 23219.92989 | BO163: 42418.17911 | BP163: 23916.52779 | BQ163: 0
D165: Equity IRR | E165: % | F165: =IRR(I163:BQ163) -> 0.114783607
D167: DSCR | E167: x | F167: =MIN(I167:BQ167) -> 2.413156226 | I167: =IF(I160>0.1,I159/I160) -> FALSE | J167: =IF(J160>0.1,J159/J160) -> 2.413156226 | K167: 2.413156226 | L167: 2.413156226 | M167: 2.413156226 | N167: 2.413156226 | O167: 2.413156226 | P167: 2.413156226 | Q167: 2.413156226 | R167: 2.413156226 | S167: 2.413156226 | T167: 2.413156226 | U167: 2.413156226 | V167: 2.413156226 | W167: 2.413156226 | X167: 2.413156226 | Y167: 2.413156226 | Z167: 2.413156226 | AA167: 2.413156226 | AB167: 2.413156226 | AC167: 2.413156226 | AD167: 2.413156226 | AE167: 2.413156226 | AF167: 2.413156226 | AG167: 2.413156226 | AH167: 2.413156226 | AI167: 2.413156226 | AJ167: 2.413156226 | AK167: 2.413156226 | AL167: 2.413156226 | AM167: 2.413156226 | AN167: 2.413156226 | AO167: 2.413156226 | AP167: 2.413156226 | AQ167: 2.413156226 | AR167: FALSE | AS167: FALSE | AT167: FALSE | AU167: FALSE | AV167: FALSE | AW167: FALSE | AX167: FALSE | AY167: FALSE | AZ167: FALSE | BA167: FALSE | BB167: FALSE | BC167: FALSE | BD167: FALSE | BE167: FALSE | BF167: FALSE | BG167: FALSE | BH167: FALSE | BI167: FALSE | BJ167: FALSE | BK167: FALSE | BL167: FALSE | BM167: FALSE | BN167: FALSE | BO167: FALSE | BP167: FALSE | BQ167: FALSE
